Cogmind - Beta 9.6 @@@ ROGUE MODE // 2020.07.04 @ 15:16:36 // Winter2019/RPGLIKE Player: Terminus Result: Smashed by cave-in Performance ------------- Evolutions (9) 4500 Regions Visited (38) 7600 Robots Destroyed (1436) 7180 Value Destroyed (85578) 85578 Prototype IDs (105) 2100 Alien Tech Used (8) 1600 Bonus (79533) 79533 TOTAL SCORE: 188091 Bonus ------- Triggered High Security 1000 High Alert Combat Kills 51152 Follower Combat Kills 3245 Network Hubs Disabled 200 Met Data Miner 300 Met Imprinter 300 Built Enhanced Grunts 300 A7 Reached Mainframe 300 Met R17 at Cetus 500 Found Hidden Lab 3000 Met R17 at Research 2000 Met Sigix 2000 Destroyed MAIN.C Guards 500 Met MAIN.C 5000 Destroyed MAIN.C Shell 5000 Destroyed MAIN.C 10000 Met Architect 300 Destroyed A8 300 Destroyed A6 400 Destroyed A5 500 Friendly Fire -6764 Cogmind --------- Core Integrity 0/1100 Matter 425/425 Energy 1407/1410 System Corruption 22% Temperature Cool (3) Movement Flying (79) Ox1 Location -1/Access_0 Parts ------- > --- POWER (2) -------- Mini Fusion Reactor Mini Fusion Reactor > --- PROPULSION (4) --- Cooled Q-thruster Cooled Q-thruster Cooled Q-thruster > --- UTILITY (16) ----- Desublimator Experimental Cooling System Experimental Energy Well Experimental Signal Interpreter Experimental Targeting Computer Experimental Targeting Computer Experimental Targeting Computer Experimental Target Analyzer Experimental Core Analyzer Experimental Armor Integrity Analyzer Experimental Weapon Cycler Advanced Reaction Control System Experimental Phase Shifter Experimental Powered Armor Deep Network Scanner > --- WEAPON (4) ------- Hypervelocity Railgun Hypervelocity Railgun Hypervelocity Multirail Enhanced Force Lance > --- INVENTORY (8) ---- Experimental Energy Well (1000) Experimental Energy Well (1000) Experimental Matter Compressor (500) Experimental Matter Compressor (500) AEGIS Remote Shield Hypervelocity Railgun Sigix Containment Pod Peak State ------------ > --- POWER ------------ Mini Fusion Reactor Mini Fusion Reactor > --- PROPULSION ------- Cooled Q-thruster Cooled Q-thruster Cooled Q-thruster Cooled Q-thruster > --- UTILITY ---------- Desublimator Experimental Cooling System Experimental Energy Well Experimental Signal Interpreter Experimental Targeting Computer Experimental Targeting Computer Experimental Targeting Computer Experimental Target Analyzer Experimental Core Analyzer Experimental Armor Integrity Analyzer Experimental Weapon Cycler Advanced Reaction Control System Experimental Phase Shifter Experimental Powered Armor AEGIS Remote Shield Deep Network Scanner > --- WEAPON ----------- Hypervelocity Railgun Hypervelocity Railgun Hypervelocity Railgun Hypervelocity Multirail > --- INVENTORY -------- Protomatter Experimental Energy Well Experimental Energy Well Experimental Matter Compressor Experimental Matter Compressor Enhanced Force Lance Sigix Containment Pod [Rating: 241] Favorites ----------- Power Mini Fusion Reactor Engine F-cell Engine Power Core Light Nuclear Core Reactor Mini Fusion Reactor Propulsion Cooled Q-thruster Leg Aluminum Leg Hover Unit Cooled Antigrav System Flight Unit Cooled Q-thruster Utility Experimental Targeting Computer Device Experimental Cooling System Storage Experimental Energy Well Processor Experimental Targeting Computer Hackware Advanced Hacking Suite Protection Medium Regenerative Plating Weapon Hypervelocity Railgun Energy Gun Improved EM Shotgun Energy Cannon Cooled Particle Cannon Ballistic Gun Hypervelocity Railgun Launcher Proton Missile Launcher Special Weapon Improved Remote Datajack Slashing Weapon Axe Piercing Weapon Spear Build | -11 -10 -10 -10 -9 -8 -7 -7 -7 -7 -7 -6 -6 -6 -6 -6 -6 -6 -5 -5 -5 -5 -5 -5 -5 -5 -4 -4 -4 -4 -4 -3 -3 -2 -2 -2 -1 -1 -1 ------- Run | Scr Mat Min Exi Min Mat Fac Was Fac Low Zio Pro Fac Was Fac Low Low Dat Pro Fac Was Fac Ext Cet Arc Hub Fac Was Fac Arm Lab Res Tes Res Qua Sec Acc Com Ac0 Slots Evolved 22 | 4 1 1 . 1 2 3 . 2 . 1 . 1 . . . . . . 2 . . . . . . . . 1 . . 1 . . . . 1 1 . Power 1 | . . . . . . 1 . . . . . . . . . . . . . . . . . . . . . . . . . . . . . . . . Propulsion 3 | 1 . 1 . . . 1 . . . . . . . . . . . . . . . . . . . . . . . . . . . . . . . . Utility 15 | 2 1 . . 1 2 1 . . . 1 . 1 . . . . . . 2 . . . . . . . . 1 . . 1 . . . . 1 1 . Weapon 3 | 1 . . . . . . . 2 . . . . . . . . . . . . . . . . . . . . . . . . . . . . . . Parts Attached 263 | 5 15 . . 5 28 18 1 9 . 5 . 10 . 5 . . 2 . 9 . 6 . 3 . . 3 2 5 12 5 3 20 3 8 8 9 43 21 Power 15 | 1 . . . . 2 2 . 1 . . . 1 . 2 . . . . . . . . . . . . . 2 1 . . 2 . . . . . 1 Engine 6 | 1 . . . . . 1 . 1 . . . 1 . 2 . . . . . . . . . . . . . . . . . . . . . . . . Core 3 | . . . . . 2 1 . . . . . . . . . . . . . . . . . . . . . . . . . . . . . . . . Reactor 6 | . . . . . . . . . . . . . . . . . . . . . . . . . . . . 2 1 . . 2 . . . . . 1 Propulsion 39 | 2 6 . . 1 6 1 1 6 . . . 1 . . . . . . 2 . 2 . . . . 2 2 . . . 2 2 2 . . . 1 . Treads . | . . . . . . . . . . . . . . . . . . . . . . . . . . . . . . . . . . . . . . . Leg 5 | 2 3 . . . . . . . . . . . . . . . . . . . . . . . . . . . . . . . . . . . . . Wheel . | . . . . . . . . . . . . . . . . . . . . . . . . . . . . . . . . . . . . . . . Hover 1 | . . . . . . . . . . . . . . . . . . . . . . . . . . . . . . . . 1 . . . . . . Flight 33 | . 3 . . 1 6 1 1 6 . . . 1 . . . . . . 2 . 2 . . . . 2 2 . . . 2 1 2 . . . 1 . Utility 117 | . 6 . . 2 8 3 . 1 . 5 . 6 . 3 . . 2 . 4 . . . 1 . . 1 . 3 7 4 . 8 1 5 8 3 23 13 Device 55 | . 5 . . 1 1 1 . . . . . . . . . . . . 1 . . . . . . . . . 3 3 . 3 1 5 6 2 17 6 Storage 8 | . . . . . . . . . . . . . . . . . . . . . . . . . . . . . . . . . . . . . 2 6 Processor 15 | . . . . 1 2 . . . . 4 . . . . . . . . . . . . . . . . . 1 3 . . 1 . . . 1 2 . Hackware 28 | . 1 . . . 2 2 . 1 . 1 . 6 . 3 . . 2 . 3 . . . 1 . . 1 . 2 1 1 . 1 . . . . . . Protection 11 | . . . . . 3 . . . . . . . . . . . . . . . . . . . . . . . . . . 3 . . 2 . 2 1 Artifact . | . . . . . . . . . . . . . . . . . . . . . . . . . . . . . . . . . . . . . . . Weapon 92 | 2 3 . . 2 12 12 . 1 . . . 2 . . . . . . 3 . 4 . 2 . . . . . 4 1 1 8 . 3 . 6 19 7 Energy Gun 22 | 1 3 . . 1 8 7 . . . . . . . . . . . . 1 . . . . . . . . . . . . 1 . . . . . . Energy Cannon 2 | . . . . . . 1 . . . . . . . . . . . . . . . . . . . . . . . . . . . 1 . . . . Ballistic Gun 34 | 1 . . . . 1 1 . . . . . . . . . . . . . . 3 . . . . . . . 3 1 . 4 . 1 . 3 12 4 Ballistic Cannon . | . . . . . . . . . . . . . . . . . . . . . . . . . . . . . . . . . . . . . . . Launcher 5 | . . . . 1 2 1 . . . . . . . . . . . . 1 . . . . . . . . . . . . . . . . . . . Special Weapon 8 | . . . . . . 1 . . . . . 2 . . . . . . 1 . 1 . 2 . . . . . . . . 1 . . . . . . Impact Weapon . | . . . . . . . . . . . . . . . . . . . . . . . . . . . . . . . . . . . . . . . Slashing Weapon 2 | . . . . . 1 1 . . . . . . . . . . . . . . . . . . . . . . . . . . . . . . . . Piercing Weapon 19 | . . . . . . . . 1 . . . . . . . . . . . . . . . . . . . . 1 . 1 2 . 1 . 3 7 3 Special Melee Weapon . | . . . . . . . . . . . . . . . . . . . . . . . . . . . . . . . . . . . . . . . Unidentified Prototypes 41 | . . . . . 4 4 . 1 . 3 . 1 . . . . 2 . . . . . . . . . 1 . . 2 . 8 . 3 5 . 5 2 Parts Lost 7 | . . . . . 4 1 . . . . . 1 . . . . . . 1 . . . . . . . . . . . . . . . . . . . Power 1 | . . . . . . . . . . . . 1 . . . . . . . . . . . . . . . . . . . . . . . . . . Propulsion 1 | . . . . . . 1 . . . . . . . . . . . . . . . . . . . . . . . . . . . . . . . . Utility 2 | . . . . . 2 . . . . . . . . . . . . . . . . . . . . . . . . . . . . . . . . . Weapon 3 | . . . . . 2 . . . . . . . . . . . . . 1 . . . . . . . . . . . . . . . . . . . Highest Loss Streak 1 | . . . . . 1 1 . . . . . 1 . . . . . . 1 . . . . . . . . . . . . . . . . . . . Average Slot Usage (%) 95 | . 78 70 70 71 89 86 92 92 . 89 89 98 100 100 100 100 100 100 97 100 98 100 100 100 100 100 100 100 99 100 99 98 99 100 99 100 99 97 Engine 4 | . 11 10 10 9 . 4 6 10 . 10 10 10 10 10 10 10 10 10 9 9 9 9 9 9 9 9 9 4 . . . . . . . . . . Reactor 3 | . . . . . . . . . . . . . . . . . . . . . . . . . . . . 3 8 8 8 8 8 8 8 8 7 6 Flight 17 | . 4 20 20 24 25 15 24 22 . 21 21 20 20 20 20 20 20 20 18 18 18 18 18 18 18 18 18 17 17 17 16 16 15 16 16 16 14 13 Device 10 | . 22 10 10 10 8 6 6 5 . 5 5 5 5 5 5 5 5 5 4 4 4 4 4 4 4 4 4 4 6 8 8 8 11 15 15 16 18 20 Processor 16 | . . . . . 10 14 12 11 . 10 10 10 10 10 10 10 10 10 9 9 9 9 9 9 9 9 9 12 17 21 20 20 20 20 20 23 28 26 Hackware 21 | . . 10 10 9 12 19 25 27 . 26 26 33 35 35 35 35 35 35 37 40 40 40 40 40 40 40 40 39 31 26 25 25 20 16 16 16 8 3 Protection 2 | . . . . . 7 6 6 . . . . . . . . . . . . . . . . . . . . . . . . 3 4 4 4 4 2 2 Energy Gun 4 | . 12 20 20 18 13 12 12 11 . 10 10 10 10 10 10 10 10 10 6 4 1 . . . . . . . . . . . . . . . . . Ballistic Gun 7 | . 10 . . . . . . . . . . . . . . . . . . . 3 9 9 9 9 9 9 8 10 14 13 12 12 12 12 15 14 14 Special Weapon 1 | . . . . . . . . . . . . 4 5 5 5 5 5 5 4 4 4 4 4 4 4 4 4 4 2 . . . . . . . . . Piercing Weapon 2 | . . . . . . . . 2 . 5 5 5 5 5 5 5 5 5 4 4 4 4 4 4 4 4 4 4 3 3 3 3 4 4 4 . . . Naked Turns . | . . . . . . . . . . . . . . . . . . . . . . . . . . . . . . . . . . . . . . . Heaviest Build 82 | 8 13 13 13 16 23 28 22 32 32 32 32 35 35 37 37 37 37 37 42 42 46 46 46 46 46 46 46 46 40 44 44 48 50 52 52 58 76 82 Greatest Support 104 | 25 25 13 13 17 28 28 27 46 45 45 45 45 44 44 44 44 44 44 44 44 50 50 50 50 62 82 58 82 82 58 82 88 76 76 104 76 104 83 Greatest Overweight (x) 1 | . 1 . . . . 1 . . . . . . . . . . . . . . . . . . . . . . . . . . . . . . . 1 Average Overweight (x) . | . . . . . . . . . . . . . . . . . . . . . . . . . . . . . . . . . . . . . . . Largest Inventory Capacity 8 | 1 2 3 3 3 4 5 5 5 5 5 5 5 5 5 5 5 5 5 5 5 6 6 6 6 6 6 6 6 6 6 6 6 6 7 7 7 8 8 Average Capacity 5 | 1 1 2 3 3 3 4 5 5 5 5 5 5 5 5 5 5 5 5 5 5 5 6 6 6 6 6 6 6 6 6 6 6 6 6 7 7 7 8 Most Carried 8 | 1 2 3 3 3 4 5 5 5 5 5 5 5 5 5 5 5 5 5 5 5 6 6 6 6 6 6 6 6 6 6 6 6 6 7 7 7 8 8 Average Carried 5 | . 1 2 3 2 3 4 5 4 5 5 5 4 5 5 5 4 5 5 4 4 5 5 5 6 6 6 6 5 5 5 6 5 5 6 6 6 7 7 Final Capacity 8 | 1 2 3 3 3 4 5 5 5 5 5 5 5 5 5 5 5 5 5 5 5 6 6 6 6 6 6 6 6 6 6 6 6 6 7 7 7 8 8 Final Carried 8 | 1 2 3 3 3 4 5 5 5 5 5 5 5 5 5 5 5 5 5 5 5 5 6 6 6 6 6 6 5 6 6 6 6 6 7 7 7 7 8 Class Distribution -------------------- 54% | Wizard-Sprinter 13% | Machinist-Scout 9% | Hacker-Mutant 8% | Hacker-Sprinter 6% | Mutant 3% | Machinist-Sprinter Dominant Class ---------------- Scavenger-Mutant | -10/Materials Mutant | -10/Mines Mutant | -10/Exiles Mutant | -9/Mines Hacker-Mutant | -8/Materials Hacker-Mutant | -7/Factory Hacker-Sprinter | -7/Waste Hacker-Sprinter | -7/Factory Hacker-Sprinter | -7/Lower Caves Hacker-Sprinter | -7/Zion Hacker-Sprinter | -6/Proximity Caves Wizard-Sprinter | -6/Factory Wizard-Sprinter | -6/Waste Wizard-Sprinter | -6/Factory Wizard-Sprinter | -6/Lower Caves Wizard-Sprinter | -6/Lower Caves Wizard-Sprinter | -6/Data Miner Wizard-Sprinter | -5/Proximity Caves Wizard-Sprinter | -5/Factory Wizard-Sprinter | -5/Waste Wizard-Sprinter | -5/Factory Wizard-Sprinter | -5/Extension Wizard-Sprinter | -5/Cetus Wizard-Sprinter | -5/Archives Wizard-Sprinter | -5/Hub_04(d) Wizard-Sprinter | -4/Factory Wizard-Sprinter | -4/Waste Wizard-Sprinter | -4/Factory Wizard-Sprinter | -4/Armory Wizard-Sprinter | -4/Lab Wizard-Sprinter | -3/Research Wizard-Sprinter | -3/Testing Wizard-Sprinter | -2/Research Wizard-Sprinter | -2/Quarantine Wizard-Sprinter | -2/Section 7 Wizard-Sprinter | -1/Access Machinist-Scout | -1/Command Machinist-Sprinter | -1/Access_0 Resources | -11 -10 -10 -10 -9 -8 -7 -7 -7 -7 -7 -6 -6 -6 -6 -6 -6 -6 -5 -5 -5 -5 -5 -5 -5 -5 -4 -4 -4 -4 -4 -3 -3 -2 -2 -2 -1 -1 -1 ----------- Run | Scr Mat Min Exi Min Mat Fac Was Fac Low Zio Pro Fac Was Fac Low Low Dat Pro Fac Was Fac Ext Cet Arc Hub Fac Was Fac Arm Lab Res Tes Res Qua Sec Acc Com Ac0 Matter Collected 43974 | 250 417 . . 83 355 289 16 104 . 50 . 93 . 118 . 42 . . 341 . 391 570 289 90 237 220 20 1052 2169 . 679 758 2632 2200 2500 6349 17997 3663 Remotely . | . . . . . . . . . . . . . . . . . . . . . . . . . . . . . . . . . . . . . . . Salvage Created 92540 | . 945 47 . 307 2088 2034 72 700 . . 29 186 . 313 177 117 21 . 984 . 428 844 343 . 789 636 317 1851 2357 . 1084 1706 4803 2280 4710 18784 41690 1898 Parts 3865 | . 60 5 . 26 110 85 10 36 . . 1 9 . 17 4 11 3 . 45 . 25 35 26 3 42 28 7 121 173 . 64 78 245 126 192 752 1389 137 Haulers Intercepted 37 | . 2 . . . 5 2 . . . . . 1 . 1 . . . . 1 . . . . . . 1 . . . . 2 2 5 1 2 12 . . Recyclers Shooed 14 | . 1 . . 1 . 2 . . . . . . . . . . . . . . . . . . . . . 2 . . . 2 3 . . 2 1 . Parts Field Recycled . | . . . . . . . . . . . . . . . . . . . . . . . . . . . . . . . . . . . . . . . Retrieved Matter . | . . . . . . . . . . . . . . . . . . . . . . . . . . . . . . . . . . . . . . . Parts Self-Destructed 20 | . . . . . . . . . . . 7 . . . 1 12 . . . . . . . . . . . . . . . . . . . . . . Prevented 6 | . . . . . . . . . . . . . . . 3 3 . . . . . . . . . . . . . . . . . . . . . . Kills | -11 -10 -10 -10 -9 -8 -7 -7 -7 -7 -7 -6 -6 -6 -6 -6 -6 -6 -5 -5 -5 -5 -5 -5 -5 -5 -4 -4 -4 -4 -4 -3 -3 -2 -2 -2 -1 -1 -1 ------- Run | Scr Mat Min Exi Min Mat Fac Was Fac Low Zio Pro Fac Was Fac Low Low Dat Pro Fac Was Fac Ext Cet Arc Hub Fac Was Fac Arm Lab Res Tes Res Qua Sec Acc Com Ac0 Combat Hostiles Destroyed 1118 | . 17 3 . 13 35 27 . 9 . . 1 2 . 2 3 6 . . 13 . 6 10 2 1 3 5 . 26 43 . 11 15 48 29 45 183 537 23 Melee 27 | . . . . . 2 1 . . . . 1 . . 1 . . . . 2 . . 4 . . . . . . 1 . . . . . 5 1 8 1 Guns 1038 | . 17 3 . 5 19 17 . 3 . . . 2 . 1 2 3 . . 3 . 2 6 2 1 3 5 . 26 42 . 11 15 48 29 40 182 529 22 AOE 41 | . . . . 8 10 7 . 6 . . . . . . 1 1 . . 4 . 4 . . . . . . . . . . . . . . . . . Classes Destroyed 27 | . 7 . . 1 3 1 1 1 . . . . . 1 1 . . . . . . . . . . . . 1 3 . . 1 1 2 2 . 1 . Worker 61 | . 1 . . . 1 2 . 1 . . . . . 1 . . . . 1 . 3 . . . 3 . . 2 . . 2 2 2 . 1 18 21 . Builder 17 | . . . . . 1 1 . . . . . . . . . . . . . . . . . . 1 . . 1 . . . 1 . . 4 8 . . Tunneler 6 | . . . . 2 1 . . . . . . . . . . . . . . . . . . . . . . 1 . . . . . . . 2 . . Hauler 37 | . 2 . . . 5 2 . . . . . 1 . 1 . . . . 1 . . . . . . 1 . . . . 2 2 5 1 2 12 . . Recycler 24 | . 1 . . 1 . 2 . . . . . . . . . . . . . . 1 . . . 1 . . 1 . . 2 1 2 . 1 6 5 . Carrier 38 | . . . . . . . . . . . . . . . . . . . . . . . . . . . . . . . . . . 1 1 20 16 . Mechanic 19 | . . . . . . . . 1 . . . . . . . . . . . . . . . . . . . . . . . . . . 1 6 11 . Operator 22 | . 3 . . . 3 1 . 1 . . . . . 1 . . . . 1 . 1 . . . 2 . . . 1 . . . . 2 . 1 5 . Drone 3 | . . . . . . . . . . . . . . 1 . . . . . . . 1 . . . . . . . . . . . . . . 1 . Watcher 78 | . 2 . . . 3 3 . 4 . . . 3 . 2 . . . . 1 . 1 1 . . 3 2 . 1 4 . 5 3 7 3 5 14 11 . Swarmer 133 | . 3 3 . 10 10 . . 4 . . 1 . . . . 3 . . . . 1 . . . . . . 3 8 . 2 3 . . 10 23 49 . Saboteur 42 | . . . . . . . . . . . . . . . . . . . . . . . . . . . . . 1 . . . . . . 7 34 . Grunt 400 | . 14 . . 3 14 21 . 3 . . . 1 . . 2 2 . . 6 . 3 4 . . 3 1 . 12 10 . 3 10 17 5 14 90 162 . Brawler 55 | . . . . . . . . . . . . . . . 1 1 . . . . . . . . . . . 1 . . 1 . 1 . . 11 39 . Duelist 45 | . . . . . . . . . . . . . . . . . . . . . . . . . . . . 1 3 . . . . . 1 5 35 . Protector 32 | . . . . . . . . . . . . . . . . . . . . . . . . . . . . . 1 . . . . 1 . 7 23 . Researcher 4 | . . . . . . . . . . . . . . . . . . . . . . . . . . . . . . . . 1 . . 3 . . . Sentry 89 | . . . . . 9 3 . 2 . . . 1 . 1 . . . . 2 . 2 5 . 1 . 1 . 7 7 . 5 1 13 . 6 15 8 . Demolisher 14 | . . . . . . . . . . . . . . . . . . . . . . . . . . . . . 2 . . . . . . . 12 . Specialist 19 | . . . . . . . . . . . . . . . . . . . . . . . . . . . . . 5 . . . . 2 . . 12 . Hunter 102 | . . . . . 2 2 . . . . . . . . . . . . 3 . . 1 . . . 2 . 2 . . . . 11 4 3 15 57 . Programmer 93 | . . . . . . 1 . . . . . . . . . . . . 2 . . . . . . 1 . . 6 . . 1 4 1 1 6 70 . Behemoth 11 | . . . . . . . . . . . . . . . . . . . . . . . . . . . . . . . . . 2 . 3 2 4 . Cetus Guard 2 | . . . . . . . . . . . . . . . . . . . . . . . 2 . . . . . . . . . . . . . . . Quarantine Guard 12 | . . . . . . . . . . . . . . . . . . . . . . . . . . . . . . . . . . 12 . . . . S7 Guard 3 | . . . . . . . . . . . . . . . . . . . . . . . . . . . . . . . . . . . 3 . . . M Guard 2 | . . . . . . . . . . . . . . . . . . . . . . . . . . . . . . . . . . . . . 2 . Enhanced Grunt 19 | . . . . . . . . . . . . . . . . . . . . . . . 1 . 1 . . . . . . . . . . . . 17 Enhanced Hunter 3 | . . . . . . . . . . . . . . . . . . . . . . . . . . . . . . . . . . . . . . 3 Lightning 3 | . . . . . . . . . . . . . . . . . . . . . . . . . . . . . . . . . . 3 . . . . Combat Programmer 2 | . . . . . . . . . . . . . . . . . . . . . . . . . . . . . . . . . . . . . 2 . Investigator 4 | . . . . . . . . . . . . . . . . . . . . . . . . . . . . . . . . . . . . 2 2 . Striker 10 | . . . . . . . . . . . . . . . . . . . . . . . . . . . . . . . . . . . . . 10 . Executioner 18 | . . . . . . . . . . . . . . . . . . . . . . . . . . . . . . . . . . . 2 2 14 . Alpha 7 4 | . . . . . . . . . . . . . . . . . . . . . . . . . . . . . . . . . . . 2 . 2 . Fortress 1 | . . . . . . . . . . . . . . . . . . . . . . . . . . . . . . . . . . 1 . . . . Martyr 2 | . . . . . . . 2 . . . . . . . . . . . . . . . . . . . . . . . . . . . . . . . Best Kill Streak 116 | . 4 3 . 10 10 6 . 6 . . 1 3 . 2 3 3 1 . 3 . 3 5 2 1 11 3 . 8 10 . 9 7 13 12 18 116 92 4 Combat Bots Only 90 | . 3 3 . 8 8 6 . 4 . . 1 2 . 1 3 3 . . 3 . 3 4 2 1 3 2 . 7 10 . 4 5 9 12 13 49 90 4 Max Kills in Single Turn 9 | . 2 1 . 5 3 2 1 5 . . 1 1 . 2 1 1 1 . 1 . 3 1 1 1 9 2 . 2 3 . 2 2 3 3 3 6 7 2 Gunslinging 3 | . . . . . . . . . . . . . . . . . . . . . . . . . . . . . 1 . . . 1 1 1 3 2 1 Exploded 4 | . . . . 4 3 2 . 4 . . . . . . 1 1 . . 1 . 3 . . . . . . . . . . . . . . . . . Melee 1 | . . . . . 1 1 . . . . 1 . . 1 . . . . 1 . . 1 . . . . . . 1 . . . . . 1 1 1 1 Uniques/NPCs Destroyed 6 | . . . . . . . . . . . . . . . . . 1 . . . . . 1 . . . . . . . . . . . . . 1 3 Data Miner (-6/Data Miner) A7 (-5/Cetus) MAIN.C Shell (-1/Command) MAIN.C (-1/Command) A8 (-1/Access_0) A6 (-1/Access_0) A5 (-1/Access_0) Combat | -11 -10 -10 -10 -9 -8 -7 -7 -7 -7 -7 -6 -6 -6 -6 -6 -6 -6 -5 -5 -5 -5 -5 -5 -5 -5 -4 -4 -4 -4 -4 -3 -3 -2 -2 -2 -1 -1 -1 -------- Run | Scr Mat Min Exi Min Mat Fac Was Fac Low Zio Pro Fac Was Fac Low Low Dat Pro Fac Was Fac Ext Cet Arc Hub Fac Was Fac Arm Lab Res Tes Res Qua Sec Acc Com Ac0 Damage Taken 23248 | . 1033 76 . 299 1752 1105 . 680 . . . 93 . 115 169 181 89 . 1035 . 116 957 398 . 420 309 . 1183 358 . 99 270 497 2012 806 1887 4736 2573 Core 17493 | . 817 64 . 233 1190 828 . 568 . . . 72 . 90 133 146 70 . 847 . 91 789 332 . 349 254 . 949 278 . 78 222 346 1432 597 1375 3378 1965 Absorbed by Shields 5037 | . . . . . . . . . . . . . . . . . . . . . . 12 21 . . . . . . . . . . . . 29 3312 1663 Redirected to Core 14387 | . 697 36 . 187 1008 601 . 354 . . . 72 . 72 133 116 70 . 673 . 91 617 247 . 264 189 . 815 278 . 78 132 298 1225 419 1140 3010 1565 Core Remaining (%) 74 | 100 . . . 16 25 . . . . . 60 . . . . . . 93 . . . . . . 88 . . . . 100 . 100 . . 87 . . . Volleys Fired 2211 | . 91 5 . 16 113 75 8 17 . . 1 21 . 9 10 10 . . 38 . 30 45 36 7 18 14 3 81 117 . 30 32 89 90 107 273 684 141 Largest 4 | . 2 2 . 2 2 2 2 2 . . 2 2 . 2 2 2 . . 2 . 2 2 2 2 2 2 2 2 3 . 4 3 3 3 3 4 4 4 Hottest 170 | . 90 90 . 90 90 90 90 90 . . 90 90 . 90 90 90 . . 90 . 80 80 80 80 80 80 80 80 120 . 160 130 130 130 130 170 170 170 Shots Fired 6727 | . 181 10 . 28 190 139 15 34 . . 2 33 . 18 20 20 . . 67 . 42 73 54 14 35 27 6 161 270 . 97 93 267 270 321 1045 2666 529 Gun 6638 | . 181 10 . 25 175 128 15 34 . . 2 24 . 18 20 20 . . 60 . 39 56 38 14 35 26 6 161 263 . 97 93 267 270 321 1045 2666 529 Cannon . | . . . . . . . . . . . . . . . . . . . . . . . . . . . . . . . . . . . . . . . Launcher 33 | . . . . 3 15 9 . . . . . . . . . . . . 5 . 1 . . . . . . . . . . . . . . . . . Special 56 | . . . . . . 2 . . . . . 9 . . . . . . 2 . 2 17 16 . . 1 . . 7 . . . . . . . . . Kinetic 6010 | . 89 . . . . . . . . . . . . . . . . . . . 34 56 38 14 35 26 6 161 263 . 97 93 267 270 321 1045 2666 529 Thermal 113 | . 88 . . . 12 . . . . . . . . . . . . . . . . . 13 . . . . . . . . . . . . . . . Explosive 3 | . . . . 3 . . . . . . . . . . . . . . . . . . . . . . . . . . . . . . . . . . Electromagnetic 558 | . 4 10 . 25 178 137 15 34 . . 2 24 . 18 20 20 . . 65 . 6 . . . . . . . . . . . . . . . . . Robot Hit Streak 71 | . 17 2 . 4 17 31 12 13 . . 3 20 . 5 10 15 . . 19 . 8 9 12 7 12 4 5 21 28 . 15 18 27 35 54 62 71 39 Robot Miss Streak 7 | . 5 3 . 4 5 5 2 1 . . 1 2 . 3 2 1 . . 2 . 3 2 3 1 2 2 3 5 4 . 3 3 5 3 4 5 7 3 Penetration Max 4 | . . . . . . . . . . . . . . . . . . . . . . 2 1 1 1 1 . 3 2 . 1 2 3 2 2 4 4 2 Secondary Targets 136 | . 3 1 . . 1 1 . . . . . . . . 1 1 . . . . . . . . . . . 2 1 . . 2 3 4 5 36 71 4 Max Gunslinging Chain 3 | . 1 1 . . 1 1 . . . . . . . . 1 1 . . . . . . . . . . . 1 1 . . 1 1 1 1 3 2 1 Shots Hit Robots 5013 | . 111 6 . 21 158 119 10 19 . . 4 33 . 23 18 20 1 . 70 . 22 64 54 10 25 20 10 102 132 . 62 72 179 225 290 644 2042 447 Core Hits 4550 | . 49 5 . 23 100 100 4 32 . . 1 18 . 14 11 14 1 . 43 . 19 23 18 3 29 12 4 74 103 . 29 40 139 191 260 631 2203 357 Critical Hits 3649 | . 1 . . . . 1 1 . . . . 1 . 1 . . . . 2 . 5 22 20 7 4 5 4 64 99 . 41 53 147 189 245 604 1844 289 Critical Kills 1102 | . . . . . . . 1 . . . . . . 1 . . . . 1 . 3 6 3 1 3 5 1 26 44 . 19 25 62 35 51 258 537 20 Critical Parts Destroyed 1796 | . 1 . . . . 1 . . . . . 1 . . . . . . 1 . 2 11 13 4 1 . 1 37 54 . 21 28 64 62 119 295 944 136 Melee Attacks 462 | . . . . . 12 11 . 24 . . 2 18 9 17 6 8 8 3 45 2 7 16 15 . 4 18 5 19 9 8 3 17 9 10 39 15 65 38 Impact . | . . . . . . . . . . . . . . . . . . . . . . . . . . . . . . . . . . . . . . . Slashing 23 | . . . . . 12 11 . . . . . . . . . . . . . . . . . . . . . . . . . . . . . . . . Piercing 439 | . . . . . . . . 24 . . 2 18 9 17 6 8 8 3 45 2 7 16 15 . 4 18 5 19 9 8 3 17 9 10 39 15 65 38 Sneak Attacks 32 | . . . . . . 2 . . . . . 1 . 2 . . 1 . . . 1 3 15 . . 2 . 2 1 . . . . . 2 . . . Combat Hostiles 3 | . . . . . . . . . . . . . . . . . . . . . . 3 . . . . . . . . . . . . . . . . Follow-up Attacks . | . . . . . . . . . . . . . . . . . . . . . . . . . . . . . . . . . . . . . . . Damage Inflicted 76976 | . 1376 47 . 732 3635 3601 62 1271 . . 78 826 . 724 434 523 118 . 1801 . 1269 1065 1362 113 1311 539 508 1553 1803 . 508 1241 1920 1883 4378 7782 30870 3643 Guns 57338 | . 1376 47 . 170 1874 2028 62 358 . . 9 497 . 273 238 277 . . 953 . 133 487 307 113 197 107 41 1311 1599 . 508 626 1920 1839 2947 7533 26081 3427 Cannons . | . . . . . . . . . . . . . . . . . . . . . . . . . . . . . . . . . . . . . . . Explosions 7151 | . . . . 562 1402 1148 . 879 . . . 170 . 35 196 212 . . 580 . 943 . . . 1024 . . . . . . . . . . . . . Melee 12323 | . . . . . 359 425 . 34 . . 69 159 . 416 . 34 118 . 268 . 193 578 891 . 90 432 467 242 204 . . 615 . 44 1431 249 4789 216 Ramming . | . . . . . . . . . . . . . . . . . . . . . . . . . . . . . . . . . . . . . . . Kinetic 49929 | . 753 . . . . . . . . . . . . . . . . . . . 133 487 307 113 197 107 41 1311 1599 . 508 626 1920 1839 2947 7533 26081 3427 Thermal 3012 | . 597 . . 53 347 543 . 102 . . . 170 . 35 196 135 . . 279 . 350 . 164 . 41 . . . . . . . . . . . . . Explosive 1674 | . . . . 509 . . . 595 . . . . . . . . . . . . 570 . . . . . . . . . . . . . . . . . Electromagnetic 10038 | . 26 47 . 170 2929 2633 62 540 . . 9 497 . 273 238 354 . . 1254 . 23 . . . 983 . . . . . . . . . . . . . Impact . | . . . . . . . . . . . . . . . . . . . . . . . . . . . . . . . . . . . . . . . Slashing 784 | . . . . . 359 425 . . . . . . . . . . . . . . . . . . . . . . . . . . . . . . . . Piercing 11539 | . . . . . . . . 34 . . 69 159 . 416 . 34 118 . 268 . 193 578 891 . 90 432 467 242 204 . . 615 . 44 1431 249 4789 216 Highest Corruption 22 | . . . . . 1 3 3 3 3 3 . . 5 5 5 5 5 5 5 15 15 16 16 16 18 1 1 1 3 3 . 1 . 1 1 3 20 22 Average Corruption 7 | . . . . . 1 2 3 3 3 3 . . 5 5 5 5 5 5 3 11 15 15 16 16 16 1 1 1 1 3 . 1 . 1 1 3 9 21 Corruption Purged . | . . . . . . . . . . . . . . . . . . . . . . . . . . . . . . . . . . . . . . . Effects 1060 | . . . . . 1 20 3 18 . . . . 1 11 6 8 1 2 16 3 60 52 26 6 22 1 1 7 6 1 . 1 . 3 8 41 524 211 Message Errors 112 | . . . . . 1 6 . 6 . . . . . 2 5 3 1 . 2 . 3 5 3 . . 1 1 4 2 . . 1 . . 1 6 45 14 Matter Fused 112 | . . . . . . 7 1 2 . . . . . 1 . 1 . . 3 1 14 10 2 1 6 . . . 3 1 . . . . . 1 39 19 Heat Flow Errors 52 | . . . . . . 2 1 3 . . . . . 1 . 1 . . 3 . 7 3 1 . 1 . . . . . . . . . . 1 21 7 Energy Discharges 43 | . . . . . . 4 . 1 . . . . . 1 . . . 1 6 . 1 4 1 . . . . 2 . . . . . . 1 4 13 4 Parts Rejected 2 | . . . . . . . . . . . . . . . . . . . . . . . . . . . . . . . . . . . . . 1 1 Data Loss (minor) 50 | . . . . . . . . 5 . . . . 1 3 1 . . 1 2 . 2 4 4 1 2 . . . . . . . . . . 2 17 5 Data Loss (major) 18 | . . . . . . . . . . . . . . 1 . 2 . . . . 1 3 1 . 1 . . . . . . . . . . . 5 4 Misfires 13 | . . . . . . . . . . . . . . . . . . . . . 1 1 . . 1 . . . . . . . . . . . 6 4 Alerts 4 | . . . . . . . . . . . . . . . . . . . . . 1 1 . . . . . . . . . . . . . . 1 1 Misdirections 111 | . . . . . . . . . . . . . . . . . . . . 1 19 7 2 2 6 . . . . . . . . . . . 51 23 Targeting Errors 453 | . . . . . . 1 . 1 . . . . . 2 . 1 . . . 1 9 13 10 2 3 . . . 1 . . . . 3 6 23 273 104 Weapon Failures 90 | . . . . . . . 1 . . . . . . . . . . . . . 2 1 2 . 2 . . 1 . . . . . . . 4 52 25 Overload Shots . | . . . . . . . . . . . . . . . . . . . . . . . . . . . . . . . . . . . . . . . Overflow Damage 761 | . . . . . 44 124 . 18 . . . 41 . 73 . 26 . . 37 . 127 16 33 . 23 64 31 . 42 . . . . . 62 . . . Projectiles . | . . . . . . . . . . . . . . . . . . . . . . . . . . . . . . . . . . . . . . . Explosions 298 | . . . . . 44 46 . 18 . . . . . . . 26 . . 37 . 127 . . . . . . . . . . . . . . . . . Melee 463 | . . . . . . 78 . . . . . 41 . 73 . . . . . . . 16 33 . 23 64 31 . 42 . . . . . 62 . . . Knockbacks . | . . . . . . . . . . . . . . . . . . . . . . . . . . . . . . . . . . . . . . . Impact . | . . . . . . . . . . . . . . . . . . . . . . . . . . . . . . . . . . . . . . . Kinetic . | . . . . . . . . . . . . . . . . . . . . . . . . . . . . . . . . . . . . . . . Secondary . | . . . . . . . . . . . . . . . . . . . . . . . . . . . . . . . . . . . . . . . Self-Inflicted Damage 390 | . . . . 12 72 96 . 51 . . . . . . . . . . . . 17 . . . 142 . . . . . . . . . . . . . Shots 13 | . . . . 1 3 3 . 3 . . . . . . . . . . . . 1 . . . 2 . . . . . . . . . . . . . Rammed . | . . . . . . . . . . . . . . . . . . . . . . . . . . . . . . . . . . . . . . . Targets Rammed . | . . . . . . . . . . . . . . . . . . . . . . . . . . . . . . . . . . . . . . . Kicked . | . . . . . . . . . . . . . . . . . . . . . . . . . . . . . . . . . . . . . . . Crushed . | . . . . . . . . . . . . . . . . . . . . . . . . . . . . . . . . . . . . . . . Highest Temperature 278 | . 14 . . . 5 156 171 99 . . . . . 130 . 98 . . 237 . 229 247 180 . 132 102 . 58 135 . 64 64 57 278 . 71 203 116 Average Temperature 39 | . 6 . . . 3 48 105 42 . . . . . 46 . 62 . . 106 . 88 116 107 . 84 59 . 58 32 . 26 18 16 38 . 71 86 76 Received Heat Transfer 2961 | . 495 . . 72 639 345 . 78 . . . 36 . 36 72 36 12 . 126 . 18 138 17 . 54 21 . 204 . . 9 36 81 90 117 120 100 9 Siege Activations . | . . . . . . . . . . . . . . . . . . . . . . . . . . . . . . . . . . . . . . . Robots Corrupted 12 | . . . . . 4 2 . . . . . . . . . 2 . . 4 . . . . . . . . . . . . . . . . . . . Combat Hostiles 12 | . . . . . 4 2 . . . . . . . . . 2 . . 4 . . . . . . . . . . . . . . . . . . . Parts Fried 84 | . . . . . 28 24 . 4 . . . 5 . 2 2 2 . . 13 . . . . . 4 . . . . . . . . . . . . . Impact Corruptions . | . . . . . . . . . . . . . . . . . . . . . . . . . . . . . . . . . . . . . . . Robots Melted . | . . . . . . . . . . . . . . . . . . . . . . . . . . . . . . . . . . . . . . . Combat Hostiles . | . . . . . . . . . . . . . . . . . . . . . . . . . . . . . . . . . . . . . . . Parts Melted 6 | . . . . . . . . . . . . . . . . . . . . . . . . . . . . . 1 . . . . . 2 . 3 . Heat Transferred 3721 | . 1350 . . 100 437 550 . 100 . . . 150 . 50 250 50 . . 200 . 250 . 184 . 50 . . . . . . . . . . . . . Parts Sabotaged 2 | . . . . . . . . . . . . . . . . . . . . . . . . . . . . . 2 . . . . . . . . . Parts Stolen . | . . . . . . . . . . . . . . . . . . . . . . . . . . . . . . . . . . . . . . . Parts Stripped . | . . . . . . . . . . . . . . . . . . . . . . . . . . . . . . . . . . . . . . . Power Chain Reactions 34 | . . . . 1 7 9 . 4 . . . 2 . 1 2 1 . . 6 . . . . . 1 . . . . . . . . . . . . . Missiles Intercepted . | . . . . . . . . . . . . . . . . . . . . . . . . . . . . . . . . . . . . . . . Alert | -11 -10 -10 -10 -9 -8 -7 -7 -7 -7 -7 -6 -6 -6 -6 -6 -6 -6 -5 -5 -5 -5 -5 -5 -5 -5 -4 -4 -4 -4 -4 -3 -3 -2 -2 -2 -1 -1 -1 ------- Run | Scr Mat Min Exi Min Mat Fac Was Fac Low Zio Pro Fac Was Fac Low Low Dat Pro Fac Was Fac Ext Cet Arc Hub Fac Was Fac Arm Lab Res Tes Res Qua Sec Acc Com Ac0 Peak Influence 14319 | . 511 96 . 330 792 893 115 940 . . . 443 91 424 . . . . 485 184 790 467 522 348 624 499 174 618 916 . 663 540 605 484 725 5086 14319 . Average Influence 1878 | . 171 77 . 150 386 519 100 297 . . . 119 77 142 . . . . 232 164 337 122 212 295 178 173 174 82 325 . 177 230 222 176 283 2030 8547 . Maximum Alert Level 5 | . 2 . . 1 3 3 . 3 . . . 2 . 2 . . . . 2 . 3 2 2 1 2 2 . 2 3 . 2 2 2 2 3 5 5 . Low Security (%) 40 | 100 62 100 . 69 17 18 100 32 . . . 86 100 87 . . . . 43 100 44 88 52 . 68 75 100 85 41 . 71 44 64 66 36 . . . Level 1 15 | . 30 . . 30 37 10 . 34 . . . 7 . 4 . . . . 38 . 18 8 28 100 29 2 . 5 16 . 11 48 16 14 41 8 . . Level 2 15 | . 7 . . . 37 43 . 29 . . . 5 . 8 . . . . 17 . 30 2 18 . 1 22 . 8 32 . 16 7 19 18 21 13 . . Level 3 3 | . . . . . 7 28 . 2 . . . . . . . . . . . . 5 . . . . . . . 9 . . . . . . 9 . . Level 4 . | . . . . . . . . . . . . . . . . . . . . . . . . . . . . . . . . . . . . 13 . . Level 5 2 | . . . . . . . . . . . . . . . . . . . . . . . . . . . . . . . . . . . . 9 11 . High Security 20 | . . . . . . . . . . . . . . . . . . . . . . . . . . . . . . . . . . . . 45 88 . Max Security . | . . . . . . . . . . . . . . . . . . . . . . . . . . . . . . . . . . . . . . . Squads Dispatched 140 | . 5 . . . 6 10 . 6 . . . 5 . 3 . . . . 8 . 5 . . . 2 1 . 6 4 . 1 . 7 1 4 30 36 . Investigation 18 | . 2 . . . 3 6 . 1 . . . 1 . 1 . . . . 2 . . . . . . . . . . . . . 1 . . 1 . . Extermination 15 | . . . . . . 1 . 2 . . . 2 . 1 . . . . 1 . . . . . . 1 . 2 2 . . . 1 1 1 . . . Reinforcement 29 | . 3 . . . 3 2 . 2 . . . 2 . 1 . . . . 2 . 1 . . . 2 . . 1 2 . 1 . 2 . 2 3 . . Assault 62 | . . . . . . 1 . . . . . . . . . . . . . . 1 . . . . . . . . . . . 1 . . 23 36 . Garrison 16 | . . . . . . . . 1 . . . . . . . . . . 3 . 3 . . . . . . 3 . . . . 2 . 1 3 . . Intercept . | . . . . . . . . . . . . . . . . . . . . . . . . . . . . . . . . . . . . . . . Construction Impeded 5 | . . . . . . . . 1 . . . 1 . . . . . . . . . . . . 1 . . 1 . . . . 1 . . . . . Haulers Reinforced 8 | . . . . . . 1 . . . . . 1 . . . . . . 1 . . . . . . . . . . . . . 1 . 1 3 . . Stealth | -11 -10 -10 -10 -9 -8 -7 -7 -7 -7 -7 -6 -6 -6 -6 -6 -6 -6 -5 -5 -5 -5 -5 -5 -5 -5 -4 -4 -4 -4 -4 -3 -3 -2 -2 -2 -1 -1 -1 --------- Run | Scr Mat Min Exi Min Mat Fac Was Fac Low Zio Pro Fac Was Fac Low Low Dat Pro Fac Was Fac Ext Cet Arc Hub Fac Was Fac Arm Lab Res Tes Res Qua Sec Acc Com Ac0 Distress Signals 59 | . . . . . 6 1 . 1 . . . . . 1 . . . . 3 . . 2 2 . 5 2 . 5 4 . 2 2 3 1 4 5 10 . Communications Jammed . | . . . . . . . . . . . . . . . . . . . . . . . . . . . . . . . . . . . . . . . Distress Signals . | . . . . . . . . . . . . . . . . . . . . . . . . . . . . . . . . . . . . . . . Times Spotted 1479 | . 40 3 . 24 61 45 5 26 . . 6 12 4 7 3 9 4 . 31 6 12 26 17 6 11 19 . 37 43 . 18 14 33 34 48 204 634 37 Peak Tracking Total 57 | . 4 3 . 6 9 6 3 5 . . 3 3 4 2 3 3 4 . 5 6 4 8 7 1 3 5 . 8 7 . 5 5 4 12 6 24 57 5 Tactical Retreats 93 | . 2 . . 6 8 5 . 2 . . . 4 . 1 . 1 . . 4 . 3 1 . . . 2 . 5 4 . . . 1 . 3 12 29 . Traps | -11 -10 -10 -10 -9 -8 -7 -7 -7 -7 -7 -6 -6 -6 -6 -6 -6 -6 -5 -5 -5 -5 -5 -5 -5 -5 -4 -4 -4 -4 -4 -3 -3 -2 -2 -2 -1 -1 -1 ------- Run | Scr Mat Min Exi Min Mat Fac Was Fac Low Zio Pro Fac Was Fac Low Low Dat Pro Fac Was Fac Ext Cet Arc Hub Fac Was Fac Arm Lab Res Tes Res Qua Sec Acc Com Ac0 Traps Triggered 25 | . 2 . . . 1 4 . . . . . 1 . . . . . . 1 . . 2 . . . 1 . . 2 . . . . . . 1 10 . Indirectly . | . . . . . . . . . . . . . . . . . . . . . . . . . . . . . . . . . . . . . . . Trap Hack Attempts . | . . . . . . . . . . . . . . . . . . . . . . . . . . . . . . . . . . . . . . . Triggered . | . . . . . . . . . . . . . . . . . . . . . . . . . . . . . . . . . . . . . . . Disarmed . | . . . . . . . . . . . . . . . . . . . . . . . . . . . . . . . . . . . . . . . Reprogrammed . | . . . . . . . . . . . . . . . . . . . . . . . . . . . . . . . . . . . . . . . Reused 1 | . . . . . . . . . . . . . . . . 1 . . . . . . . . . . . . . . . . . . . . . . Traps Extracted . | . . . . . . . . . . . . . . . . . . . . . . . . . . . . . . . . . . . . . . . Installed 1 | . . . . . . . . . . . . . . . . 1 . . . . . . . . . . . . . . . . . . . . . . Triggered 3 | . . . . . 1 . . . . . . . . . . 2 . . . . . . . . . . . . . . . . . . . . . . Machines | -11 -10 -10 -10 -9 -8 -7 -7 -7 -7 -7 -6 -6 -6 -6 -6 -6 -6 -5 -5 -5 -5 -5 -5 -5 -5 -4 -4 -4 -4 -4 -3 -3 -2 -2 -2 -1 -1 -1 ---------- Run | Scr Mat Min Exi Min Mat Fac Was Fac Low Zio Pro Fac Was Fac Low Low Dat Pro Fac Was Fac Ext Cet Arc Hub Fac Was Fac Arm Lab Res Tes Res Qua Sec Acc Com Ac0 Machines Disabled 114 | . . . . . 10 3 . 8 . . . . . . . . 1 . 3 . 24 1 . 2 9 3 . . 1 2 . 5 . 4 30 1 3 4 Max in Single Turn 24 | . . . . . 2 1 . 2 . . . . . . . . 1 . 1 . 18 1 . . 8 1 . . . 1 . 1 . 1 24 1 2 1 Garrison Access 18 | . . . . . 1 2 . . . . . . . 1 . . . . 2 . 2 . . . 1 . . . . . . 1 3 1 1 3 . . Phase Generator 1 | . . . . . . . . . . . . . . . . . . . . . . . . . . . . . . . . . . . . . 1 . Network Hub 1 | . . . . . . . . . . . . . . . . . . . . . . . . . 1 . . . . . . . . . . . . . Machines Sabotaged . | . . . . . . . . . . . . . . . . . . . . . . . . . . . . . . . . . . . . . . . Garrisons Compromised . | . . . . . . . . . . . . . . . . . . . . . . . . . . . . . . . . . . . . . . . Overloaded Fab Kills 4 | . . . . . . . . . . . . . . . . . . . 3 . . . . . . . . . . . . . . . . 1 . . Fab Network Shutdowns 11 | . . . . . . . . 1 . . . 1 . 1 . . . . . . 1 . . . . 1 . 1 1 . 1 1 1 . . 1 . . Hacking | -11 -10 -10 -10 -9 -8 -7 -7 -7 -7 -7 -6 -6 -6 -6 -6 -6 -6 -5 -5 -5 -5 -5 -5 -5 -5 -4 -4 -4 -4 -4 -3 -3 -2 -2 -2 -1 -1 -1 --------- Run | Scr Mat Min Exi Min Mat Fac Was Fac Low Zio Pro Fac Was Fac Low Low Dat Pro Fac Was Fac Ext Cet Arc Hub Fac Was Fac Arm Lab Res Tes Res Qua Sec Acc Com Ac0 Machines Accessed 225 | . 7 . 1 . 14 11 . 18 . 1 . 13 . 9 . . 4 1 12 . 14 12 1 . 6 6 . 10 10 1 5 12 12 15 13 14 3 . Terminals 158 | . 5 . . . 9 7 . 14 . . . 11 . 6 . . . 1 5 . 8 12 1 . 5 4 . 8 7 . 4 8 6 13 12 9 3 . Fabricators 27 | . . . . . . 2 . 1 . . . 2 . 2 . . . . 2 . 3 . . . . 2 . 2 3 . 1 2 3 . . 2 . . Repair Stations 5 | . . . . . 2 . . 1 . . . . . . . . . . 2 . . . . . . . . . . . . . . . . . . . Recycling Units 3 | . 2 . . . 1 . . . . . . . . . . . . . . . . . . . . . . . . . . . . . . . . . Scanalyzers 4 | . . . . . 1 . . 1 . . . . . . . . . . . . . . . . . . . . . . . 1 . 1 . . . . Garrison Access 21 | . . . . . 1 2 . 1 . . . . . 1 . . . . 3 . 3 . . . 1 . . . . . . 1 3 1 1 3 . . Total Hacks 1064 | . 20 . 6 . 46 52 . 67 . 5 . 70 . 56 . . 28 5 51 . 68 48 8 . 21 43 . 57 63 1 35 60 68 39 64 53 30 . Successful 855 | . 14 . 6 . 33 22 . 45 . 5 . 51 . 39 . . 28 5 48 . 65 48 8 . 19 39 . 56 58 1 25 56 54 35 44 38 13 . Failed 207 | . 6 . . . 13 30 . 22 . . . 19 . 16 . . . . 2 . 3 . . . 2 4 . 1 5 . 10 4 14 4 20 15 17 . Catastrophic 34 | . 1 . . . 3 7 . 4 . . . 5 . . . . . . . . . . . . . . . . . . . . 4 . 3 2 5 . Database Lockouts 2 | . . . . . . . . . . . . . . 1 . . . . 1 . . . . . . . . . . . . . . . . . . . Manual 711 | . 17 . . . 25 28 . 39 . . . 55 . 42 . . . 4 29 . 48 39 8 . 18 28 . 40 49 . 31 38 39 32 41 33 28 . Terminals 780 | . 17 . . . 29 40 . 53 . . . 54 . 41 . . . 5 31 . 43 48 8 . 20 29 . 38 42 . 28 41 47 36 63 37 30 . Fabricators 179 | . . . . . . 8 . 6 . . . 16 . 14 . . . . 9 . 19 . . . . 14 . 19 21 . 7 16 17 . . 13 . . Repair Stations 14 | . . . . . 8 . . 2 . . . . . . . . . . 4 . . . . . . . . . . . . . . . . . . . Recycling Units 4 | . 3 . . . 1 . . . . . . . . . . . . . . . . . . . . . . . . . . . . . . . . . Scanalyzers 14 | . . . . . 7 . . 5 . . . . . . . . . . . . . . . . . . . . . . . 1 . 1 . . . . Garrison Access 33 | . . . . . 1 4 . 1 . . . . . 1 . . . . 7 . 6 . . . 1 . . . . . . 2 4 2 1 3 . . Terminal Hacks 474 | . 8 . 6 . 10 11 . 24 . 5 . 25 . 17 . . 28 5 24 . 29 32 6 . 13 20 . 26 30 1 15 28 26 21 34 18 12 . Record 24 | . . . 6 . . . . . . . . . . . . . 11 1 . . . . . . . . . . . 1 . 2 1 2 . . . . Part Schematic 60 | . . . . . 1 1 . 3 . 5 . 7 . 3 . . 7 1 5 . 7 . . . 2 5 . . . . 7 4 2 . . . . . Robot Schematic 7 | . . . . . . . . . . . . . . . . . 7 . . . . . . . . . . . . . . . . . . . . . Robot Analysis 4 | . . . . . . . . . . . . . . . . . . . . . . . . . . 1 . . . . . 1 1 . 1 . . . Prototype ID Bank 19 | . . . . . . . . 1 . . . 1 . 2 . . 3 . 3 . 1 1 . . . . . 1 . . . 1 . . 2 3 . . Open Door 16 | . . . . . . . . . . . . . . . . . . . . . . 7 1 . . . . . . . . 1 . 1 3 3 . . Level Access Points 6 | . . . . . . . . . . . . . . . . . . 1 . . . 1 . . 1 . . . 1 . . 1 . . 1 . . . Branch Access Points 14 | . . . . . 1 1 . 1 . . . 1 . 1 . . . . 1 . 1 1 . . . 1 . 1 . . 1 1 1 . . 1 . . Emergency Access Points 1 | . . . . . . . . . . . . . . 1 . . . . . . . . . . . . . . . . . . . . . . . . Machine Index 9 | . . . . . 1 1 . 1 . . . . . . . . . . 1 . . 1 . . . . . 1 1 . . . . . 1 1 . . Terminal Index 15 | . . . . . . . . . . . . 1 . 1 . . . . 1 . 1 1 . . 1 1 . 1 1 . 1 1 1 1 1 . 1 . Fabricator Index 12 | . . . . . . . . . . . . 1 . 1 . . . . 1 . 2 . . . . 1 . 1 1 . 1 1 1 . 1 . . . Repair Station Index 1 | . . . . . . . . . . . . . . . . . . . . . . . . . . 1 . . . . . . . . . . . . Garrison Index 3 | . . . . . . . . . . . . 1 . . . . . . . . . . . . . . . . 1 . . . . 1 . . . . Alert Level 93 | . 3 . . . 1 2 . 6 . . . 6 . 3 . . . 1 4 . 4 7 2 . 2 4 . 5 9 . 2 4 8 4 8 5 3 . Unreport Threat 93 | . 2 . . . 3 5 . 6 . . . 3 . . . . . 1 1 . 6 3 2 . 2 2 . 7 8 . 2 8 7 5 9 4 7 . Locate Traps 5 | . 1 . . . . . . 2 . . . . . . . . . . 2 . . . . . . . . . . . . . . . . . . . Investigation Status 1 | . . . . . . . . . . . . . . . . . . . . . . . . . . . . 1 . . . . . . . . . . Extermination Status 1 | . . . . . . . . . . . . . . . . . . . . . . . . . . . . 1 . . . . . . . . . . Reinforcement Status 2 | . . . . . . . . . . . . . . . . . . . . . . . . . . . . . 1 . . 1 . . . . . . Recall Investigation 4 | . . . . . . . . 1 . . . . . 1 . . . . 2 . . . . . . . . . . . . . . . . . . . Recall Extermination 9 | . . . . . . . . 1 . . . 1 . 1 . . . . . . . . . . . 1 . 2 1 . . . 1 1 . . . . Recall Reinforcements 4 | . . . . . 1 . . . . . . . . . . . . . . . . . . . . . . . 2 . . . . . 1 . . . Recall Assault 2 | . . . . . . . . . . . . . . . . . . . . . 1 . . . . . . . . . . . 1 . . . . . Hauler Manifests 9 | . . . . . 1 . . . . . . . . . . . . . 1 . 1 2 . . 2 1 . . . . . . . 1 . . . . Zone Layout 60 | . 2 . . . 1 1 . 2 . . . 3 . 3 . . . . 2 . 5 8 1 . 3 2 . 5 4 . 1 2 2 5 6 1 1 . Fabricator Hacks 106 | . . . . . . 4 . 3 . . . 10 . 8 . . . . 5 . 11 . . . . 9 . 13 12 . 4 11 10 . . 6 . . Network Status 2 | . . . . . . . . . . . . . . . . . . . . . . . . . . . . . . . . 1 . . . 1 . . Load Schematic 44 | . . . . . . 1 . 1 . . . 4 . 3 . . . . 2 . 5 . . . . 4 . 4 6 . 1 5 5 . . 3 . . Build 60 | . . . . . . 3 . 2 . . . 6 . 5 . . . . 3 . 6 . . . . 5 . 9 6 . 3 5 5 . . 2 . . Repair Station Hacks 14 | . . . . . 8 . . 2 . . . . . . . . . . 4 . . . . . . . . . . . . . . . . . . . Scan Component 7 | . . . . . 4 . . 1 . . . . . . . . . . 2 . . . . . . . . . . . . . . . . . . . Repair 7 | . . . . . 4 . . 1 . . . . . . . . . . 2 . . . . . . . . . . . . . . . . . . . Recycling Unit Hacks . | . . . . . . . . . . . . . . . . . . . . . . . . . . . . . . . . . . . . . . . Scanalyzer 12 | . . . . . 7 . . 3 . . . . . . . . . . . . . . . . . . . . . . . 1 . 1 . . . . Insert Component 5 | . . . . . 2 . . 1 . . . . . . . . . . . . . . . . . . . . . . . 1 . 1 . . . . Analyze 7 | . . . . . 5 . . 2 . . . . . . . . . . . . . . . . . . . . . . . . . . . . . . Garrison Access Hacks 18 | . . . . . 1 2 . . . . . . . 1 . . . . 2 . 2 . . . 1 . . . . . . 1 3 1 1 3 . . Seal Access 18 | . . . . . 1 2 . . . . . . . 1 . . . . 2 . 2 . . . 1 . . . . . . 1 3 1 1 3 . . Unauthorized Hacks 231 | . 6 . . . 7 5 . 13 . . . 16 . 13 . . . . 13 . 23 16 2 . 5 10 . 17 16 . 6 15 15 12 9 11 1 . Terminals 151 | . 4 . . . 6 5 . 10 . . . 11 . 7 . . . . 4 . 11 16 2 . 5 5 . 11 7 . 3 9 7 11 9 7 1 . Track 18 | . . . . . . . . . . . . . . 1 . . . . . . 2 5 1 . 1 1 . 3 1 . . 1 . . 2 . . . Assimilate 34 | . . . . . 1 2 . 5 . . . 2 . 2 . . . . 2 . 1 1 . . 2 2 . 4 . . 1 1 1 4 2 . 1 . Botnet 84 | . 4 . . . 5 3 . 4 . . . 8 . 3 . . . . 1 . 6 8 1 . 2 1 . 3 5 . 2 6 5 7 3 7 . . Detonate 4 | . . . . . . . . 1 . . . 1 . . . . . . . . 1 . . . . . . . . . . . . . 1 . . . Operators 11 | . . . . . . . . . . . . . . 1 . . . . 1 . 1 2 . . . 1 . 1 1 . . 1 1 . 1 . . . Fabricators 64 | . . . . . . . . 2 . . . 5 . 6 . . . . 4 . 8 . . . . 5 . 6 9 . 3 5 7 . . 4 . . Report 16 | . . . . . . . . . . . . 1 . 2 . . . . 1 . 2 . . . . 1 . 2 3 . 1 1 1 . . 1 . . Prioritize 23 | . . . . . . . . 1 . . . 2 . 2 . . . . 1 . 3 . . . . 2 . 2 3 . 1 2 3 . . 1 . . Siphon 23 | . . . . . . . . 1 . . . 2 . 2 . . . . 1 . 3 . . . . 2 . 2 3 . 1 2 3 . . 1 . . Overload 2 | . . . . . . . . . . . . . . . . . . . 1 . . . . . . . . . . . . . . . . 1 . . Repair Stations . | . . . . . . . . . . . . . . . . . . . . . . . . . . . . . . . . . . . . . . . Recycling Units 3 | . 2 . . . 1 . . . . . . . . . . . . . . . . . . . . . . . . . . . . . . . . . Tunnel 3 | . 2 . . . 1 . . . . . . . . . . . . . . . . . . . . . . . . . . . . . . . . . Scanalyzers . | . . . . . . . . . . . . . . . . . . . . . . . . . . . . . . . . . . . . . . . Garrison Access 13 | . . . . . . . . 1 . . . . . . . . . . 5 . 4 . . . . . . . . . . 1 1 1 . . . . Reprogram 12 | . . . . . . . . 1 . . . . . . . . . . 5 . 4 . . . . . . . . . . 1 . 1 . . . . Watchers 1 | . . . . . . . . . . . . . . . . . . . . . . . . . . . . . . . . . 1 . . . . . Data Cores Recovered . | . . . . . . . . . . . . . . . . . . . . . . . . . . . . . . . . . . . . . . . Used . | . . . . . . . . . . . . . . . . . . . . . . . . . . . . . . . . . . . . . . . Hacking Detections 111 | . 6 . . . 11 10 . 10 . . . 8 . 7 . . . 1 5 . 7 3 . . 2 3 . 5 5 . 3 6 5 4 4 3 3 . Full Trace Events 7 | . . . . . 1 4 . 1 . . . . . . . . . . . . . . . . . . . . . . . . 1 . . . . . Feedback Events 1 | . . . . . 1 . . . . . . . . . . . . . . . . . . . . . . . . . . . . . . . . . Hackware Fried 1 | . . . . . 1 . . . . . . . . . . . . . . . . . . . . . . . . . . . . . . . . . Feedback Blocked . | . . . . . . . . . . . . . . . . . . . . . . . . . . . . . . . . . . . . . . . Robot Schematics Acquired 7 | . . . . . . . . . . . . . . . . . 7 . . . . . . . . . . . . . . . . . . . . . Robots Built . | . . . . . . . . . . . . . . . . . . . . . . . . . . . . . . . . . . . . . . . Matter . | . . . . . . . . . . . . . . . . . . . . . . . . . . . . . . . . . . . . . . . Time . | . . . . . . . . . . . . . . . . . . . . . . . . . . . . . . . . . . . . . . . Total Robot Build Rating . | . . . . . . . . . . . . . . . . . . . . . . . . . . . . . . . . . . . . . . . Part Schematics Acquired 63 | . . . . . 3 1 . 4 . 5 . 7 . 3 . . 7 1 5 . 7 . . . 2 5 . . . . 7 4 2 . . . . . Parts Built 46 | . . . . . . 1 . 4 . . . 5 . 3 . . . . 3 . 7 . . . . 3 . 4 6 . 2 3 3 . . 2 . . Matter 11206 | . . . . . . 252 . 371 . . . 791 . 530 . . . . 609 . 1232 . . . . 965 . 1140 1751 . 729 1146 1146 . . 544 . . Time 3611 | . . . . . . 134 . 79 . . . 95 . 212 . . . . 121 . 384 . . . . 342 . 278 614 . 166 555 555 . . 76 . . Total Part Build Rating 320 | . . . . . . 4 . 24 . . . 27 . 18 . . . . 18 . 53 . . . . 21 . 28 39 . 18 27 27 . . 16 . . Parts Repaired 7 | . . . . . 4 . . 1 . . . . . . . . . . 2 . . . . . . . . . . . . . . . . . . . Time 273 | . . . . . 116 . . 78 . . . . . . . . . . 79 . . . . . . . . . . . . . . . . . . . Parts Recycled . | . . . . . . . . . . . . . . . . . . . . . . . . . . . . . . . . . . . . . . . Recycled Matter . | . . . . . . . . . . . . . . . . . . . . . . . . . . . . . . . . . . . . . . . Retrieved Matter . | . . . . . . . . . . . . . . . . . . . . . . . . . . . . . . . . . . . . . . . Retrieved Components . | . . . . . . . . . . . . . . . . . . . . . . . . . . . . . . . . . . . . . . . Parts Scanalyzed 3 | . . . . . 2 . . 1 . . . . . . . . . . . . . . . . . . . . . . . . . . . . . . Part Schematics Acquired 3 | . . . . . 2 . . 1 . . . . . . . . . . . . . . . . . . . . . . . . . . . . . . Parts Damaged . | . . . . . . . . . . . . . . . . . . . . . . . . . . . . . . . . . . . . . . . Bothacking | -11 -10 -10 -10 -9 -8 -7 -7 -7 -7 -7 -6 -6 -6 -6 -6 -6 -6 -5 -5 -5 -5 -5 -5 -5 -5 -4 -4 -4 -4 -4 -3 -3 -2 -2 -2 -1 -1 -1 ------------ Run | Scr Mat Min Exi Min Mat Fac Was Fac Low Zio Pro Fac Was Fac Low Low Dat Pro Fac Was Fac Ext Cet Arc Hub Fac Was Fac Arm Lab Res Tes Res Qua Sec Acc Com Ac0 Used RIF Installer . | . . . . . . . . . . . . . . . . . . . . . . . . . . . . . . . . . . . . . . . Robots Hacked 7 | . . . . . . 1 . . . . . 1 . . . . . . 1 . . . 3 . . 1 . . . . . . . . . . . . Non-combat 4 | . . . . . . 1 . . . . . 1 . . . . . . 1 . . . . . . 1 . . . . . . . . . . . . Combat 3 | . . . . . . . . . . . . . . . . . . . . . . . 3 . . . . . . . . . . . . . . . Robot Hacks Applied 7 | . . . . . . 1 . . . . . 1 . . . . . . 1 . . . 3 . . 1 . . . . . . . . . . . . parse_system 3 | . . . . . . . . . . . . . . . . . . . . . . . 3 . . . . . . . . . . . . . . . find_chute 4 | . . . . . . 1 . . . . . 1 . . . . . . 1 . . . . . . 1 . . . . . . . . . . . . Relay Couplers Released 2 | . . . . . . . . . . . . . . . . . . . . . . . . . 1 . . . . . . . . . . 1 . . Machine Destruction 1 | . . . . . . . . . . . . . . . . . . . . . . . . . 1 . . . . . . . . . . . . . Programmers 1 | . . . . . . . . . . . . . . . . . . . . . . . . . . . . . . . . . . . . 1 . . Robots Rewired 25 | . . . . . . . . . . . . 2 . . . . . . 1 . . 16 . . . . . . 6 . . . . . . . . . Allies Hacked . | . . . . . . . . . . . . . . . . . . . . . . . . . . . . . . . . . . . . . . . Hacks Repelled 1 | . . . . . . . . . . . . . . . . . . . . . . 1 . . . . . . . . . . . . . . . . Allies | -11 -10 -10 -10 -9 -8 -7 -7 -7 -7 -7 -6 -6 -6 -6 -6 -6 -6 -5 -5 -5 -5 -5 -5 -5 -5 -4 -4 -4 -4 -4 -3 -3 -2 -2 -2 -1 -1 -1 -------- Run | Scr Mat Min Exi Min Mat Fac Was Fac Low Zio Pro Fac Was Fac Low Low Dat Pro Fac Was Fac Ext Cet Arc Hub Fac Was Fac Arm Lab Res Tes Res Qua Sec Acc Com Ac0 Total Allies 114 | . . 1 . . 1 1 19 8 . 5 . 3 . 2 . . . . 14 . 4 27 5 . 2 1 . 4 6 . 4 1 1 3 1 . 1 . Largest Group 20 | . . 1 1 . 1 1 20 13 5 10 10 7 . 2 2 2 . . 4 . 3 14 9 6 4 1 . 4 6 . 4 1 2 2 1 . 1 . Highest-Rated Group 691 | . . 31 31 . 26 26 513 361 114 229 229 187 . 36 36 36 . . 113 . 147 534 691 419 245 26 . 56 293 . 182 44 70 54 10 . 44 . Highest-Rated Ally 156 | . . 31 31 . 26 26 35 33 26 31 31 41 . 26 26 26 . . 49 . 49 156 156 94 94 26 . 26 58 . 46 44 44 44 10 . 44 . Total Orders 16 | . . . . . . 2 . 4 . . . . . . . . . . . . 2 . . . . . . 4 . . . . . . . . 4 . STAY 2 | . . . . . . . . . . . . . . . . . . . . . 1 . . . . . . 1 . . . . . . . . . . GOTO 6 | . . . . . . 1 . 3 . . . . . . . . . . . . . . . . . . . 2 . . . . . . . . . . FOLLOW 4 | . . . . . . 1 . 1 . . . . . . . . . . . . 1 . . . . . . 1 . . . . . . . . . . EXPLORE 4 | . . . . . . . . . . . . . . . . . . . . . . . . . . . . . . . . . . . . . 4 . Ally Attacks 726 | . . . . . . . 134 123 . . 18 8 . . . . . . 65 9 42 153 64 20 32 . . . 54 . 4 . . . . . . . Total Damage 18184 | . . . . . . . 4269 1808 . . 254 308 . . . . . . 974 215 1152 3394 2240 566 1256 . . . 1610 . 138 . . . . . . . Kills 106 | . . . . . . . 10 13 . . 3 3 . . . . . . 11 . 11 21 16 3 7 . . . 7 . 1 . . . . . . . Allies Corrupted 1 | . . . . . . . . . . . . . . . . . . . . . . . . . . . . . 1 . . . . . . . . . Allies Melted 1 | . . . . . . . . . . . . . . . . . . . 1 . . . . . . . . . . . . . . . . . . . Intel | -11 -10 -10 -10 -9 -8 -7 -7 -7 -7 -7 -6 -6 -6 -6 -6 -6 -6 -5 -5 -5 -5 -5 -5 -5 -5 -4 -4 -4 -4 -4 -3 -3 -2 -2 -2 -1 -1 -1 ------- Run | Scr Mat Min Exi Min Mat Fac Was Fac Low Zio Pro Fac Was Fac Low Low Dat Pro Fac Was Fac Ext Cet Arc Hub Fac Was Fac Arm Lab Res Tes Res Qua Sec Acc Com Ac0 Robot Analysis Total 4 | . . . . . . . . . . . . . . . . . . . . . . . . . . 1 . . . . . 1 1 . 1 . . . Derelict Logs Recovered 5 | . . 2 . 2 . . . . . 1 . . . . . . . . . . . . . . . . . . . . . . . . . . . . Drone Launches 9 | . . . . . . . . . . . . . . . . . . . 2 . 3 . . . . . . . . . . . . . . . 4 . Drone Recoveries . | . . . . . . . . . . . . . . . . . . . . . . . . . . . . . . . . . . . . . . . Exploration | -11 -10 -10 -10 -9 -8 -7 -7 -7 -7 -7 -6 -6 -6 -6 -6 -6 -6 -5 -5 -5 -5 -5 -5 -5 -5 -4 -4 -4 -4 -4 -3 -3 -2 -2 -2 -1 -1 -1 ------------- Run | Scr Mat Min Exi Min Mat Fac Was Fac Low Zio Pro Fac Was Fac Low Low Dat Pro Fac Was Fac Ext Cet Arc Hub Fac Was Fac Arm Lab Res Tes Res Qua Sec Acc Com Ac0 Turns Passed 26839 | 57 972 209 59 418 1164 1899 155 1206 9 465 302 756 68 544 250 243 53 83 1153 38 736 696 334 73 208 670 100 1619 1058 80 359 527 1109 813 824 1637 4730 1163 Spaces Moved 35980 | 49 830 285 150 531 1342 2413 266 1931 9 752 287 1221 105 709 346 441 103 266 1163 90 1121 832 249 50 192 1025 243 989 1167 172 489 1203 1872 1617 1464 2629 6351 1026 Core 95 | 17 78 . . . . . . . . . . . . . . . . . . . . . . . . . . . . . . . . . . . . . Treads . | . . . . . . . . . . . . . . . . . . . . . . . . . . . . . . . . . . . . . . . Legs 368 | 32 336 . . . . . . . . . . . . . . . . . . . . . . . . . . . . . . . . . . . . . Wheels . | . . . . . . . . . . . . . . . . . . . . . . . . . . . . . . . . . . . . . . . Hover . | . . . . . . . . . . . . . . . . . . . . . . . . . . . . . . . . . . . . . . . Flight 35517 | . 416 285 150 531 1342 2413 266 1931 9 752 287 1221 105 709 346 441 103 266 1163 90 1121 832 249 50 192 1025 243 989 1167 172 489 1203 1872 1617 1464 2629 6351 1026 Fastest Speed 6 | 50 37 37 37 34 34 32 32 29 29 29 29 28 28 28 28 28 28 28 28 28 26 26 26 26 20 14 26 14 14 26 14 11 21 21 6 21 6 18 Average Speed 27 | 95 72 37 37 36 34 43 32 29 29 29 29 28 28 28 28 28 28 28 28 28 27 26 26 26 25 25 26 25 25 26 25 22 21 21 20 21 20 22 Slowest Speed 130 | 120 130 37 37 37 37 117 32 32 29 29 29 29 28 28 28 28 28 28 28 28 28 26 26 26 26 26 29 26 26 26 26 25 23 21 21 21 21 79 Overloaded Moves 746 | . . . . . . . . . . . . . . . . . . . . . . . . . 7 26 . 13 14 . 7 6 . . 7 . 107 559 Propulsion Burnouts . | . . . . . . . . . . . . . . . . . . . . . . . . . . . . . . . . . . . . . . . Robots Hopped 288 | . 7 8 . 14 17 27 . 17 . . . 12 . 14 . . . . 3 . 6 29 . . 2 19 . 22 . . 5 11 20 . 10 14 30 1 Cave-ins Triggered 3 | . . . . . . . . . . . . . . . . . . . . . . . . . . . . . . . . . . 1 . . . 2 Teleports 2 | . . . . . . . . . . . . . . . . . . . . . . . . . . . . . . . . . . . . . 1 1 Exploration Rate (%) 56 | 3 94 47 54 80 90 45 89 46 2 81 56 35 82 17 52 52 77 46 31 73 31 74 66 58 28 17 87 23 69 99 13 86 41 92 85 42 86 40 Regions Visited 38 Branch Regions 21 Pre-discovered Areas 7 | . 2 1 1 . 1 . . . . 1 . . . . . . 1 . . . . . . . . . . . . . . . . . . . . . Known Exits Taken 25 | . . . . . 1 . . 1 1 1 1 . . 1 1 1 1 1 . . 1 1 1 1 1 . . 1 1 1 1 1 1 1 1 1 1 . Unknown Exits Taken 5 | 1 1 1 1 1 . . . . . . . . . . . . . . . . . . . . . . . . . . . . . . . . . . Scrap Searched 12 | . . 2 . 1 . . . . . 3 . . . . 2 2 . 2 . . . . . . . . . . . . . . . . . . . . Spaces Dug 158 | . . . . . . . . 18 . . . 10 8 8 6 4 3 3 21 2 3 . . . 1 1 . 13 4 . 1 . 9 5 3 6 4 25 Terrain Destroyed 616 | . . . . 35 22 21 . 34 . . . 27 8 11 15 23 3 3 34 2 97 . . . 139 1 . 13 4 . 1 . 9 5 3 6 75 25 Melee 158 | . . . . . . . . 18 . . . 10 8 8 6 4 3 3 21 2 3 . . . 1 1 . 13 4 . 1 . 9 5 3 6 4 25 Projectile . | . . . . . . . . . . . . . . . . . . . . . . . . . . . . . . . . . . . . . . . AOE 458 | . . . . 35 22 21 . 16 . . . 17 . 3 9 19 . . 13 . 94 . . . 138 . . . . . . . . . . . 71 . Actions | -11 -10 -10 -10 -9 -8 -7 -7 -7 -7 -7 -6 -6 -6 -6 -6 -6 -6 -5 -5 -5 -5 -5 -5 -5 -5 -4 -4 -4 -4 -4 -3 -3 -2 -2 -2 -1 -1 -1 --------- Run | Scr Mat Min Exi Min Mat Fac Was Fac Low Zio Pro Fac Was Fac Low Low Dat Pro Fac Was Fac Ext Cet Arc Hub Fac Was Fac Arm Lab Res Tes Res Qua Sec Acc Com Ac0 Total 48491 | 56 1013 371 152 711 1813 3085 318 2480 14 998 500 1561 129 995 469 528 114 269 1851 99 1490 1198 427 95 305 1358 265 2138 1721 194 669 1372 2425 1961 1771 3282 8614 1680 Wait 8510 | 2 52 85 3 164 265 502 36 481 6 237 209 285 16 268 102 40 . 1 550 6 309 247 106 35 80 310 . 1005 380 1 142 76 438 149 108 270 1203 341 Move 35400 | 48 816 269 149 506 1307 2361 265 1898 8 751 286 1197 104 681 345 440 102 265 1158 89 1108 782 248 49 187 994 242 946 1166 171 478 1181 1831 1616 1443 2601 6290 1022 Hop 255 | . 6 7 . 10 17 25 . 15 . . . 12 . 13 . . . . 2 . 6 20 . . 2 12 . 20 . . 5 10 20 . 10 13 29 1 Pick Up 77 | 1 4 2 . 1 8 5 . 4 . . . 2 . . . 2 . . 1 1 4 2 1 . . . . . 3 2 . 2 3 5 1 1 13 9 Fast Attach 165 | 5 11 . . 2 17 11 1 4 . 5 . 4 . . . . 2 . 4 . 3 . . . . 2 2 2 6 5 2 15 3 7 16 2 21 13 Attach 25 | . . . . 1 3 . . 3 . . . 2 . . . . . . 1 . 1 . 1 . . . . 1 2 . . 1 . 1 . 1 5 2 Detach 10 | . 1 . . 1 2 . . 1 . . . . . . . . . . . . . . . . . . . . . . . 1 . . . . . 4 Swap 86 | . 4 . . 2 8 7 . 2 . . . 5 . 5 . . . . 4 . 2 . 2 . . 1 . 2 4 1 1 4 . . . 6 18 8 Drop 186 | . 13 1 . 1 15 14 . 7 . 5 . 3 . 2 . 2 2 . 3 1 7 1 1 . . 2 2 2 4 6 2 16 6 12 9 3 31 13 Fire 2211 | . 91 5 . 16 113 75 8 17 . . 1 21 . 9 10 10 . . 38 . 30 45 36 7 18 14 3 81 117 . 30 32 89 90 107 273 684 141 Melee 462 | . . . . . 12 11 . 24 . . 2 18 9 17 6 8 8 3 45 2 7 16 15 . 4 18 5 19 9 8 3 17 9 10 39 15 65 38 Ram . | . . . . . . . . . . . . . . . . . . . . . . . . . . . . . . . . . . . . . . . Kick . | . . . . . . . . . . . . . . . . . . . . . . . . . . . . . . . . . . . . . . . Crush . | . . . . . . . . . . . . . . . . . . . . . . . . . . . . . . . . . . . . . . . Escape Stasis 146 | . . . . . . 18 . . . . . . . . . . . . . . . 34 . . . . . . . . . . . . . 2 91 1 Rewire . | . . . . . . . . . . . . . . . . . . . . . . . . . . . . . . . . . . . . . . . Trap 1 | . . . . . . . . . . . . . . . . 1 . . . . . . . . . . . . . . . . . . . . . . Miscellaneous 957 | . 15 2 . 7 46 56 8 24 . . 2 12 . . 6 25 . . 45 . 13 51 17 4 14 5 11 60 30 . 6 17 26 71 38 95 164 87 Route ------- -11/Scrapyard -10/Materials (discovered 4 exits: [*Mat x3] / [*Min]) -10/Mines (discovered 2 exits: [*Mat] / *Exi) -10/Exiles -9/Mines -8/Materials (discovered 3 exits: *Fac x3) -7/Factory (discovered 4 exits: *Fac x2 / Low x2) -7/Waste -7/Factory (discovered 3 exits: *Fac / *Low x2) -7/Lower Caves -7/Zion -6/Proximity Caves -6/Factory (discovered 2 exits: *Low x2) -6/Waste -6/Factory (discovered 2 exits: *Low x2) -6/Lower Caves -6/Lower Caves -6/Data Miner -5/Proximity Caves -5/Factory (discovered 4 exits: *Upp x2 / Ext x2) -5/Waste -5/Factory (discovered 4 exits: *Upp x2 / *Ext x2) -5/Extension (discovered 3 exits: *Fac x2 / *Cet) -5/Cetus (discovered 2 exits: *Fac / *Arc) -5/Archives -5/Hub_04(d) (discovered 4 exits: *Fac x4) -4/Factory (discovered 4 exits: Res / Upp x2 / Arm) -4/Waste -4/Factory (discovered 4 exits: *Res / Upp x2 / *Arm) -4/Armory (discovered 3 exits: Res x2 / *Lab) -4/Lab -3/Research (discovered 2 exits: *Tes x2) -3/Testing -2/Research (discovered 4 exits: *Acc x2 / *Qua x2) -2/Quarantine (discovered 2 exits: *Acc / *Sec) -2/Section 7 -1/Access (discovered 2 exits: [*Sur] / *Com) -1/Command (discovered 3 exits: [*Sur x2] / *Ac0) -1/Access_0 (discovered 1 exit: [*Sur]) History --------- Turn | Location | Event 1 | -11/Scrapyard | Upgraded with Propulsion slot (x1) 1 | -11/Scrapyard | Upgraded with Utility slot (x2) 1 | -11/Scrapyard | Upgraded with Weapon slot (x1) 7 | -11/Scrapyard | Discovered new exit (range 16) 58 | -11/Scrapyard | Entered Materials 226 | -10/Materials | Core integrity fell below 50% 265 | -10/Materials | Reached level 2 270 | -10/Materials | Upgraded with Utility slot (x1) 300 | -10/Materials | Build established: Mutant 723 | -10/Materials | Build established: Scavenger-Mutant 724 | -10/Materials | Discovered new exit (range 12) 835 | -10/Materials | Discovered new exit (range 16) 879 | -10/Materials | Core integrity fell below 20% 900 | -10/Materials | Discovered new exit (range 7) 950 | -10/Materials | Discovered new exit (range 3) 1030 | -10/Materials | Entered Mines 1032 | -10/Mines | Reached level 3 1032 | -10/Mines | Upgraded with Propulsion slot (x1) 1034 | -10/Mines | Found a hidden stash of uninstalled traps 1035 | -10/Mines | Discovered new exit (range 11) 1053 | -10/Mines | Found a damaged Exp. Sensor Array with a note attached 1054 | -10/Mines | Found Prototype Device 1063 | -10/Mines | Learned location of Zion (-7) 1090 | -10/Mines | Escorted by a lone wolf Derelict 1156 | -10/Mines | Received a Rocket Launcher from a helpful Derelict 1164 | -10/Mines | Assembled infested the area 1193 | -10/Mines | Learned Materials machine intel 1200 | -10/Mines | Deemed a non-threat by the Exiles lab entrance 1200 | -10/Mines | Discovered new exit (range 5) 1235 | -10/Mines | Build established: Mutant 1239 | -10/Mines | Entered Exiles 1239 | -10/Exiles | Accompanied by 1 ally 1252 | -10/Exiles | Met 8R-AWN 1257 | -10/Exiles | Met EX-HEX 1274 | -10/Exiles | Met EX-DEC 1294 | -10/Exiles | Discovered new exit (range 11) 1298 | -10/Exiles | Entered Mines 1344 | -9/Mines | Learned location of 1 exit from Materials 1426 | -9/Mines | Reached level 4 1429 | -9/Mines | Upgraded with Utility slot (x1) 1599 | -9/Mines | Destroyed 8 combat bots 1699 | -9/Mines | Discovered new exit (range 5) 1716 | -9/Mines | Entered Materials 1717 | -8/Materials | Identified exit to Factory 1717 | -8/Materials | Core integrity fell below 50% 1717 | -8/Materials | Core integrity fell below 20% 1718 | -8/Materials | Loaded intel: 54 machine locations 1718 | -8/Materials | Reached level 5 1838 | -8/Materials | Reached level 6 2086 | -8/Materials | Repaired Flight Unit 2113 | -8/Materials | Repaired Flight Unit 2141 | -8/Materials | Repaired Flight Unit 2265 | -8/Materials | Reached level 7 2276 | -8/Materials | Upgraded with Utility slot (x1) 2311 | -8/Materials | Build established: Hacker-Mutant 2480 | -8/Materials | Discovered exit to Factory (range 6) 2483 | -8/Materials | System Shield fried by hacking feedback 2507 | -8/Materials | Reached level 8 2526 | -8/Materials | Identified Exp. Sensor Array 2559 | -8/Materials | Destroyed 8 combat bots 2636 | -8/Materials | Reached level 9 2681 | -8/Materials | Upgraded with Utility slot (x1) 2798 | -8/Materials | Discovered exit to Factory (range 8) 2838 | -8/Materials | Repaired Lgt. Nuclear Core 2880 | -8/Materials | Entered Factory 2881 | -7/Factory | Core integrity fell below 50% 2882 | -7/Factory | Reached level 10 2882 | -7/Factory | Upgraded with Power slot (x1) 2882 | -7/Factory | Upgraded with Propulsion slot (x1) 3121 | -7/Factory | Reached level 11 3766 | -7/Factory | Identified exit to Lower Caves 3891 | -7/Factory | Reached level 12 3974 | -7/Factory | Discovered new exit (range 11) 4004 | -7/Factory | Identified exit to Factory 4080 | -7/Factory | First assault squad dispatched 4228 | -7/Factory | Reached level 13 4279 | -7/Factory | Upgraded with Utility slot (x1) 4377 | -7/Factory | Discovered exit to Factory (range 8) 4752 | -7/Factory | Fabricated Cld. VTOL Module (x1) 4779 | -7/Factory | Manually triggered Chute Trap 4779 | -7/Factory | Sucked down chute 4779 | -7/Factory | Entered Waste 4786 | -7/Waste | Spotted C-40 Crusher 4788 | -7/Waste | Spotted C-40 Crusher 4791 | -7/Waste | Spotted C-40 Crusher 4795 | -7/Waste | 1 allies followed down the chute 4796 | -7/Waste | Spotted C-40 Crusher 4797 | -7/Waste | Spotted C-40 Crusher 4804 | -7/Waste | Warlord forces began an assault 4815 | -7/Waste | Allies destroyed C-40 Crusher 4817 | -7/Waste | Allies destroyed C-40 Crusher 4825 | -7/Waste | Spotted C-40 Crusher 4831 | -7/Waste | Allies destroyed C-40 Crusher 4834 | -7/Waste | Allies destroyed C-40 Crusher 4837 | -7/Waste | Allies destroyed C-40 Crusher 4839 | -7/Waste | Allies destroyed C-40 Crusher 4880 | -7/Waste | Discovered new exit (range 16) 4892 | -7/Waste | Identified exit to Factory 4934 | -7/Waste | Entered Factory 4934 | -7/Factory | Accompanied by 13 allies 5067 | -7/Factory | Build established: Hacker-Sprinter 5077 | -7/Factory | Repaired Broken Field Propulsion Drive 5123 | -7/Factory | Reached level 14 5153 | -7/Factory | Upgraded with Weapon slot (x2) 5168 | -7/Factory | Fabricated Field Propulsion Drive (x2) 5199 | -7/Factory | Fabricated Field Propulsion Drive (x2) 5609 | -7/Factory | Discovered exit to Factory (range 16) 5653 | -7/Factory | Reached level 15 5736 | -7/Factory | Local fabrication network quarantined 6111 | -7/Factory | Garrison activated, responded to threat 6140 | -7/Factory | Entered Lower Caves 6140 | -7/Lower Caves | Accompanied by 5 allies 6141 | -7/Lower Caves | A Derelict revealed a hidden shortcut to a safe place 6144 | -7/Lower Caves | Identified exit to Zion 6149 | -7/Lower Caves | Entered Zion 6149 | -7/Zion | Accompanied by 5 allies 6151 | -7/Zion | Reached level 16 6153 | -7/Zion | Upgraded with Utility slot (x1) 6165 | -7/Zion | Given A8's code to call for help 6169 | -7/Zion | System corruption cleaned by Quarantine Array 6189 | -7/Zion | Discovered new exit (range 13) 6229 | -7/Zion | Found Exp. Signal Interpreter 6233 | -7/Zion | Found Prototype Processor 6233 | -7/Zion | Identified Exp. Terrain Scan Processor 6236 | -7/Zion | Found Prototype Processor 6236 | -7/Zion | Identified Exp. Core Analyzer 6281 | -7/Zion | Gained Derelict followers 6308 | -7/Zion | Learned location of Armory (-4) 6309 | -7/Zion | Learned Factory stockpile data 6415 | -7/Zion | Identified exit to Proximity Caves 6614 | -7/Zion | Entered Proximity Caves 6614 | -6/Proximity Caves | Accompanied by 10 allies 6618 | -6/Proximity Caves | Reached level 17 6916 | -6/Proximity Caves | Entered Factory 6916 | -6/Factory | Accompanied by 5 allies 6978 | -6/Factory | Reached level 18 7011 | -6/Factory | Upgraded with Utility slot (x1) 7099 | -6/Factory | Identified exit to Lower Caves 7314 | -6/Factory | Build established: Wizard-Sprinter 7320 | -6/Factory | Fabricated Imp. Hacking Suite (x1) 7337 | -6/Factory | Fabricated Imp. Hacking Suite (x1) 7354 | -6/Factory | Fabricated Imp. Hacking Suite (x1) 7436 | -6/Factory | Fabricated Adv. Target Analyzer (x1) 7452 | -6/Factory | Fabricated Imp. System Shield (x1) 7518 | -6/Factory | Local fabrication network quarantined 7672 | -6/Factory | Manually triggered Chute Trap 7672 | -6/Factory | Sucked down chute 7672 | -6/Factory | Entered Waste 7678 | -6/Waste | Spotted C-40 Crusher 7678 | -6/Waste | Spotted C-40 Crusher 7687 | -6/Waste | EMP discharged 7703 | -6/Waste | Spotted C-40 Crusher 7736 | -6/Waste | Discovered new exit (range 16) 7736 | -6/Waste | Spotted C-40 Crusher 7740 | -6/Waste | Identified exit to Factory 7740 | -6/Waste | Entered Factory 7804 | -6/Factory | Central database locked down 7963 | -6/Factory | Fabricated Adv. Hacking Suite (x1) 8018 | -6/Factory | Fabricated Adv. Hacking Suite (x1) 8073 | -6/Factory | Fabricated Adv. Hacking Suite (x1) 8238 | -6/Factory | Local fabrication network quarantined 8284 | -6/Factory | Entered Lower Caves 8284 | -6/Lower Caves | Accompanied by 2 allies 8505 | -6/Lower Caves | Encountered a Warlord checkpoint 8514 | -6/Lower Caves | Discovered new exit (range 12) 8517 | -6/Lower Caves | Identified exit to Lower Caves 8534 | -6/Lower Caves | Entered another Lower Caves area 8534 | -6/Lower Caves | Accompanied by 2 allies 8694 | -6/Lower Caves | Reached level 19 8771 | -6/Lower Caves | Discovered new exit (range 6) 8772 | -6/Lower Caves | Identified exit to Data Miner 8777 | -6/Lower Caves | Entered Data Miner 8777 | -6/Data Miner | Discovered new exit (range 6) 8783 | -6/Data Miner | Met Data Miner 8788 | -6/Data Miner | Learned location of Section 7 (-2) 8788 | -6/Data Miner | Acquired the access code to Warlord's prototype stash 8792 | -6/Data Miner | Received God Mode back door access code from Data Miner 8798 | -6/Data Miner | Destroyed Data Miner 8801 | -6/Data Miner | Found Prototype Hackware 8801 | -6/Data Miner | Identified Quantum Router 8803 | -6/Data Miner | Found Prototype Hackware 8803 | -6/Data Miner | Identified Deep Network Scanner 8807 | -6/Data Miner | Data Conduit disabled 8830 | -6/Data Miner | Identified exit to Proximity Caves 8830 | -6/Data Miner | Entered Proximity Caves 8887 | -5/Proximity Caves | Identified exit to Factory 8913 | -5/Proximity Caves | Entered Factory 8915 | -5/Factory | Reached level 20 8916 | -5/Factory | Upgraded with Utility slot (x1) 8982 | -5/Factory | Reached level 21 9097 | -5/Factory | Discovered new exit (range 5) 9098 | -5/Factory | Identified exit to Upper Caves 9221 | -5/Factory | Discovered exit to Upper Caves (range 12) 9297 | -5/Factory | Repaired Imp. EM Shotgun 9334 | -5/Factory | Identified exit to Extension 9583 | -5/Factory | Garrison activated, responded to threat 9683 | -5/Factory | Reached level 22 9683 | -5/Factory | Upgraded with Utility slot (x1) 9836 | -5/Factory | Central database locked down 9899 | -5/Factory | Repaired Field Propulsion Drive 9947 | -5/Factory | Fabricated Adv. Hacking Suite? 9985 | -5/Factory | Fabricated Adv. Hacking Suite (x1) 10030 | -5/Factory | Fabricated Combat Drone Bay? 10066 | -5/Factory | Manually triggered Chute Trap 10066 | -5/Factory | Sucked down chute 10066 | -5/Factory | Entered Waste 10078 | -5/Waste | Spotted C-40 Crusher 10078 | -5/Waste | Spotted C-40 Crusher 10078 | -5/Waste | Spotted C-40 Crusher 10081 | -5/Waste | EMP discharged 10081 | -5/Waste | System corruption reached 10% 10092 | -5/Waste | Spotted C-40 Crusher 10092 | -5/Waste | Spotted C-40 Crusher 10092 | -5/Waste | Spotted C-40 Crusher 10094 | -5/Waste | Discovered new exit (range 16) 10104 | -5/Waste | Identified exit to Factory 10104 | -5/Waste | Entered Factory 10105 | -5/Factory | 2 allies followed down the chute 10297 | -5/Factory | Fabricated Adv. Armor Integrity Analyzer? 10314 | -5/Factory | Fabricated Hyp. Railgun? 10455 | -5/Factory | Fabricated Hyp. Railgun? 10555 | -5/Factory | Reached level 23 10648 | -5/Factory | Fabricated Cld. Field Propulsion Drive (x1) 10690 | -5/Factory | Local fabrication network quarantined 10697 | -5/Factory | Fabricated Cld. Field Propulsion Drive (x1) 10704 | -5/Factory | First assault squad dispatched 10840 | -5/Factory | Entered Extension 10840 | -5/Extension | Accompanied by 3 allies 10850 | -5/Extension | Identified exit to Cetus 10851 | -5/Extension | Rescued a captive Derelict 11016 | -5/Extension | Rescued a captive Derelict 11016 | -5/Extension | Rescued a captive Derelict 11018 | -5/Extension | Identified exit to Factory 11062 | -5/Extension | Rescued a captive Derelict 11064 | -5/Extension | Rescued a captive Derelict 11072 | -5/Extension | Rescued a captive Derelict 11112 | -5/Extension | Rescued a captive Derelict 11160 | -5/Extension | Spotted B-75 Beast 11171 | -5/Extension | Spotted B-75 Beast 11188 | -5/Extension | Allies destroyed B-75 Beast 11197 | -5/Extension | Allies destroyed B-75 Beast 11328 | -5/Extension | Rescued A7 11344 | -5/Extension | Rescued a captive Derelict 11345 | -5/Extension | Rescued a captive Derelict 11505 | -5/Extension | Disrupted transfer network 11509 | -5/Extension | Reached level 24 11536 | -5/Extension | Entered Cetus 11536 | -5/Cetus | Accompanied by 9 allies 11541 | -5/Cetus | Acquired a Cetus Manufacturing Module code from A7 11555 | -5/Cetus | Spotted Cetus Guard 11555 | -5/Cetus | Spotted Cetus Guard 11556 | -5/Cetus | Spotted Cetus Guard 11556 | -5/Cetus | Spotted Cetus Guard 11561 | -5/Cetus | Destroyed Cetus Guard 11568 | -5/Cetus | Allies destroyed Cetus Guard 11574 | -5/Cetus | Destroyed Cetus Guard 11574 | -5/Cetus | Allies destroyed Cetus Guard 11592 | -5/Cetus | Started Cetus Manufacturing Module 11602 | -5/Cetus | Escorted A7 to Cetus Mainframe 11617 | -5/Cetus | Manufactured an Enhanced Grunt 11642 | -5/Cetus | Manufactured an Enhanced Grunt 11667 | -5/Cetus | Manufactured an Enhanced Grunt 11692 | -5/Cetus | Manufactured an Enhanced Grunt 11717 | -5/Cetus | Manufactured an Enhanced Grunt 11732 | -5/Cetus | Destroyed A7 11735 | -5/Cetus | Extracted ID and sensor layout for unrecognized location from A7's data core 11740 | -5/Cetus | Found Med. Regenerative Plating 11774 | -5/Cetus | Discovered new exit (range 15) 11796 | -5/Cetus | Spotted Cetus Guard 11796 | -5/Cetus | Spotted Cetus Guard 11798 | -5/Cetus | Spotted Cetus Guard 11802 | -5/Cetus | Spotted Cetus Guard 11806 | -5/Cetus | Allies destroyed Cetus Guard 11808 | -5/Cetus | Allies destroyed Cetus Guard 11814 | -5/Cetus | Allies destroyed Cetus Guard 11825 | -5/Cetus | Discovered exit to Factory (range 15) 11827 | -5/Cetus | Met Revision 17 11842 | -5/Cetus | Identified exit to Archives 11870 | -5/Cetus | Entered Archives 11870 | -5/Archives | Accompanied by 6 allies 11918 | -5/Archives | Discovered new exit (range 15) 11922 | -5/Archives | Identified exit to Hub_04(d) 11943 | -5/Archives | Entered Hub_04(d) 11943 | -5/Hub_04(d) | Accompanied by 3 allies 12037 | -5/Hub_04(d) | Reached level 25 12148 | -5/Hub_04(d) | Network Hub disabled 12151 | -5/Hub_04(d) | Entered Factory 12166 | -4/Factory | Identified exit to Upper Caves 12166 | -4/Factory | Identified exit to Armory 12274 | -4/Factory | Discovered new exit (range 19) 12288 | -4/Factory | Fabricated Cld. Field Propulsion Drive? 12348 | -4/Factory | Fabricated Cld. Field Propulsion Drive (x1) 12453 | -4/Factory | Fabricated Exp. Hacking Suite (x1) 12669 | -4/Factory | Local fabrication network quarantined 12821 | -4/Factory | Manually triggered Chute Trap 12821 | -4/Factory | Sucked down chute 12821 | -4/Factory | Entered Waste 12821 | -4/Waste | The area was eerily silent 12892 | -4/Waste | Discovered new exit (range 12) 12920 | -4/Waste | Identified exit to Factory 12921 | -4/Waste | Entered Factory 12969 | -4/Factory | Garrison activated, responded to threat 13088 | -4/Factory | Reached level 26 13130 | -4/Factory | Upgraded with Utility slot (x1) 13135 | -4/Factory | Destroyed 7 combat bots 13213 | -4/Factory | Spotted B-86 Titan 13337 | -4/Factory | Discovered new exit (range 12) 13378 | -4/Factory | Fabricated Exp. Hacking Suite (x1) 13463 | -4/Factory | Fabricated Exp. Hacking Suite (x1) 13512 | -4/Factory | Fabricated Mni. Fusion Reactor (x1) 14013 | -4/Factory | Fabricated Mni. Fusion Reactor (x1) 14432 | -4/Factory | Local fabrication network quarantined 14540 | -4/Factory | Entered Armory 14569 | -4/Armory | Identified exit to Research 14892 | -4/Armory | Fabricated Adv. Matter Compressor (x1) 14946 | -4/Armory | Fabricated Exp. Target Analyzer (x1) 14985 | -4/Armory | Fabricated Exp. Targeting Computer (x1) 15135 | -4/Armory | Fabricated Exp. Targeting Computer (x1) 15148 | -4/Armory | Local fabrication network quarantined 15150 | -4/Armory | Fabricated Exp. Cooling System (x1) 15235 | -4/Armory | Fabricated Exp. System Shield (x1) 15296 | -4/Armory | Reached level 27 15424 | -4/Armory | Destroyed 7 combat bots 15549 | -4/Armory | Discovered new exit (range 3) 15552 | -4/Armory | Identified exit to Lab 15592 | -4/Armory | Destroyed 10 combat bots 15598 | -4/Armory | Entered Lab 15598 | -4/Lab | Discovered exit to Research (range 9) 15601 | -4/Lab | Hidden lab's door opened automatically 15601 | -4/Lab | Sensor layout match revealed 15602 | -4/Lab | Gained access to the hidden lab's interior 15631 | -4/Lab | Found Quantum Router 15633 | -4/Lab | Found Prototype Device 15633 | -4/Lab | Identified AEGIS Remote Shield 15647 | -4/Lab | Found Alien Artifact 15647 | -4/Lab | Identified Integrated Dissipator 15647 | -4/Lab | Installed Integrated Dissipator, increased core heat dissipation (+2%) 15663 | -4/Lab | Unable to decrypt terminal 15674 | -4/Lab | Found Alien Artifact 15678 | -4/Lab | Entered Research 15680 | -3/Research | Reached level 28 15686 | -3/Research | Identified exit to Testing 15782 | -3/Research | Spotted B-86 Titan 15878 | -3/Research | Revision forces began assault on 0b10 15904 | -3/Research | Fabricated Cld. Q-thruster (x1) 15962 | -3/Research | Fabricated Cld. Q-thruster (x1) 15967 | -3/Research | Reached level 29 15967 | -3/Research | Met up with Revision 17++ 15968 | -3/Research | Upgraded with Utility slot (x1) 15979 | -3/Research | Local fabrication network quarantined 16037 | -3/Research | Entered Testing 16046 | -3/Testing | Identified exit to Research 16058 | -3/Testing | Found Prototype Ballistic Gun 16058 | -3/Testing | Identified Hyp. Multirail 16167 | -3/Testing | Found Prototype Energy Gun 16167 | -3/Testing | Identified Warp Gun 16177 | -3/Testing | Identified Core Reset Matrix 16185 | -3/Testing | Fabricated Exp. Armor Integrity Analyzer? 16233 | -3/Testing | Fabricated Exp. Phase Shifter? 16274 | -3/Testing | Found Prototype Hackware 16274 | -3/Testing | Identified System Mapper 16320 | -3/Testing | Found Exp. Weapon Cycler 16324 | -3/Testing | Fabricated Exp. Weapon Cycler? 16325 | -3/Testing | Found Prototype Reactor 16325 | -3/Testing | Identified Zero-point Reactor 16329 | -3/Testing | Found Prototype Special Weapon 16329 | -3/Testing | Identified Gui. Remote Datajack 16526 | -3/Testing | Local fabrication network quarantined 16564 | -3/Testing | Entered Research 16564 | -2/Research | Accompanied by 1 ally 16566 | -2/Research | Reached level 30 16658 | -2/Research | Reached level 31 16693 | -2/Research | Discovered new exit (range 15) 16701 | -2/Research | Identified exit to Access 16728 | -2/Research | Discovered new exit (range 13) 16736 | -2/Research | Identified exit to Quarantine 16877 | -2/Research | Fabricated Cld. Q-thruster (x1) 16938 | -2/Research | Fabricated Cld. Q-thruster? 17196 | -2/Research | Fabricated Exp. Core Analyzer (x1) 17227 | -2/Research | Spotted B-90 Cyclops 17246 | -2/Research | Destroyed B-90 Cyclops 17249 | -2/Research | Garrison activated, responded to threat 17305 | -2/Research | Destroyed 7 combat bots 17375 | -2/Research | Reached level 32 17383 | -2/Research | Discovered exit to Access (range 15) 17400 | -2/Research | Spotted B-90 Cyclops 17404 | -2/Research | Destroyed 9 combat bots 17420 | -2/Research | Destroyed B-90 Cyclops 17557 | -2/Research | Local fabrication network quarantined 17564 | -2/Research | First assault squad dispatched 17583 | -2/Research | Garrison activated, responded to threat 17673 | -2/Research | Entered Quarantine 17680 | -2/Quarantine | Cryocooling Duct disabled 17695 | -2/Quarantine | Ambient heat levels rising (+20) 17695 | -2/Quarantine | Non-combat units ordered to evacuate 17800 | -2/Quarantine | Crushed by falling debris 17858 | -2/Quarantine | Discovered exit to Access (range 20) 17866 | -2/Quarantine | Found Alien Artifact 17889 | -2/Quarantine | Identified Transdimensional Reconstructor 17906 | -2/Quarantine | Found Transdimensional Reconstructor 17985 | -2/Quarantine | Met incapacitated Sigix Warrior 17985 | -2/Quarantine | Lockdown squad dispatched 17986 | -2/Quarantine | Acquired the access code to the Sigix quarantine chamber 17986 | -2/Quarantine | Unlocked Sigix quarantine chamber 18029 | -2/Quarantine | Destroyed Lightning 18033 | -2/Quarantine | Destroyed Lightning 18035 | -2/Quarantine | Destroyed Lightning 18051 | -2/Quarantine | Found Prototype Energy Cannon 18051 | -2/Quarantine | Identified EMDS 18062 | -2/Quarantine | Found Prototype Device 18062 | -2/Quarantine | Identified EM Dispersion Field 18123 | -2/Quarantine | Spotted Fortress 18218 | -2/Quarantine | Core integrity fell below 50% 18239 | -2/Quarantine | Destroyed Fortress 18282 | -2/Quarantine | Cryocooling Duct disabled 18297 | -2/Quarantine | Ambient heat levels rising (+20) 18297 | -2/Quarantine | Combat units ordered to evacuate 18346 | -2/Quarantine | Reached level 33 18397 | -2/Quarantine | Quarantine Guard activated 18397 | -2/Quarantine | Spotted Quarantine Guard 18397 | -2/Quarantine | Spotted Quarantine Guard 18397 | -2/Quarantine | Destroyed Quarantine Guard 18397 | -2/Quarantine | Destroyed Quarantine Guard 18397 | -2/Quarantine | Destroyed Quarantine Guard 18398 | -2/Quarantine | Spotted Quarantine Guard 18398 | -2/Quarantine | Spotted Quarantine Guard 18399 | -2/Quarantine | Spotted Quarantine Guard 18399 | -2/Quarantine | Spotted Quarantine Guard 18399 | -2/Quarantine | Spotted Quarantine Guard 18400 | -2/Quarantine | Destroyed Quarantine Guard 18400 | -2/Quarantine | Destroyed Quarantine Guard 18400 | -2/Quarantine | Spotted Quarantine Guard 18401 | -2/Quarantine | Spotted Quarantine Guard 18402 | -2/Quarantine | Spotted Quarantine Guard 18402 | -2/Quarantine | Destroyed Quarantine Guard 18404 | -2/Quarantine | Destroyed Quarantine Guard 18404 | -2/Quarantine | Destroyed Quarantine Guard 18404 | -2/Quarantine | Spotted Quarantine Guard 18407 | -2/Quarantine | Destroyed Quarantine Guard 18407 | -2/Quarantine | Destroyed Quarantine Guard 18409 | -2/Quarantine | Destroyed Quarantine Guard 18411 | -2/Quarantine | Destroyed Quarantine Guard 18432 | -2/Quarantine | Destroyed 12 combat bots 18484 | -2/Quarantine | Discovered new exit (range 6) 18484 | -2/Quarantine | Identified exit to Section 7 18486 | -2/Quarantine | Entered Section 7 18494 | -2/Section 7 | Found Integrated Dissipator 18494 | -2/Section 7 | Installed Integrated Dissipator, increased core heat dissipation (+2%) 18515 | -2/Section 7 | Found Integrated Dissipator 18515 | -2/Section 7 | Installed Integrated Dissipator, increased core heat dissipation (+2%) 18547 | -2/Section 7 | Spotted S7 Guard 18598 | -2/Section 7 | Destroyed S7 Guard 18608 | -2/Section 7 | Found Alien Artifact 18608 | -2/Section 7 | Identified Integrated Singularity Reactor 18608 | -2/Section 7 | Installed Integrated Singularity Reactor, increased core energy generation (+2%) 18612 | -2/Section 7 | Spotted B-90 Cyclops 18628 | -2/Section 7 | Destroyed B-90 Cyclops 18698 | -2/Section 7 | Garrison activated, responded to threat 18763 | -2/Section 7 | Spotted B-90 Cyclops 18787 | -2/Section 7 | Destroyed B-90 Cyclops 18789 | -2/Section 7 | Spotted S7 Guard 18811 | -2/Section 7 | Destroyed S7 Guard 18830 | -2/Section 7 | Found Alien Artifact 18830 | -2/Section 7 | Identified Integrated Heat Negator 18830 | -2/Section 7 | Installed Integrated Heat Negator, increased core heat dissipation (+2%) 18877 | -2/Section 7 | Spotted Alpha 7 18905 | -2/Section 7 | Spotted Alpha 7 18960 | -2/Section 7 | Destroyed Alpha 7 18971 | -2/Section 7 | Destroyed Alpha 7 19027 | -2/Section 7 | Spotted S7 Guard 19073 | -2/Section 7 | Destroyed S7 Guard 19092 | -2/Section 7 | Reached level 34 19096 | -2/Section 7 | Found Alien Artifact 19096 | -2/Section 7 | Identified Core Regenerator 19096 | -2/Section 7 | Used Core Regenerator, restored core integrity (+0) 19106 | -2/Section 7 | Destroyed 13 combat bots 19166 | -2/Section 7 | Destroyed Executioner 19168 | -2/Section 7 | Destroyed Executioner 19186 | -2/Section 7 | Spotted B-99 Colossus 19201 | -2/Section 7 | Found Alien Artifact 19201 | -2/Section 7 | Identified LRC Energy Well 19201 | -2/Section 7 | Installed LRC Energy Well, increased energy storage capacity (+250) 19206 | -2/Section 7 | Found Alien Artifact 19206 | -2/Section 7 | Identified LRC Matter Compressor 19206 | -2/Section 7 | Installed LRC Matter Compressor, increased matter storage capacity (+125) 19220 | -2/Section 7 | Found Integrated Dissipator 19220 | -2/Section 7 | Installed Integrated Dissipator, increased core heat dissipation (+2%) 19268 | -2/Section 7 | Destroyed B-99 Colossus 19280 | -2/Section 7 | Spotted Executioner 19280 | -2/Section 7 | Spotted Executioner 19310 | -2/Section 7 | Entered Access 19328 | -1/Access | Spotted B-99 Colossus 19379 | -1/Access | Destroyed B-99 Colossus 19427 | -1/Access | Identified exit to Command 19448 | -1/Access | Garrison activated, responded to threat 19481 | -1/Access | Reached level 35 19486 | -1/Access | Upgraded with Utility slot (x1) 19505 | -1/Access | Destroyed 9 combat bots 19522 | -1/Access | Fabricated Enh. Force Lance (x1) 19558 | -1/Access | Fabricated Exp. Energy Well (x1) 19611 | -1/Access | Local fabrication network quarantined 19810 | -1/Access | First assault squad dispatched 19830 | -1/Access | Spotted B-99 Colossus 19835 | -1/Access | Destroyed 12 combat bots 19837 | -1/Access | Spotted B-99 Colossus 19897 | -1/Access | Destroyed B-99 Colossus 20007 | -1/Access | Reached level 36 20028 | -1/Access | Destroyed 13 combat bots 20127 | -1/Access | Discovered new exit (range 5) 20198 | -1/Access | High security lockdown imminent 20240 | -1/Access | Destroyed 9 combat bots 20278 | -1/Access | High security lockdown engaged 20405 | -1/Access | Destroyed 11 combat bots 20486 | -1/Access | Destroyed 8 combat bots 20502 | -1/Access | Destroyed Investigator 20559 | -1/Access | Reached level 37 20566 | -1/Access | Destroyed Executioner 20576 | -1/Access | Spotted Executioner 20576 | -1/Access | Destroyed Executioner 20623 | -1/Access | Garrison activated, responded to threat 20692 | -1/Access | Destroyed Investigator 20798 | -1/Access | Destroyed 49 combat bots 20848 | -1/Access | Destroyed 13 combat bots 20946 | -1/Access | Destroyed 18 combat bots 20947 | -1/Access | Entered Command 20959 | -1/Command | Reached level 38 20963 | -1/Command | Upgraded with Utility slot (x1) 21074 | -1/Command | High security lockdown imminent 21140 | -1/Command | Destroyed 11 combat bots 21154 | -1/Command | High security lockdown engaged 21165 | -1/Command | Phase Generator disabled 21323 | -1/Command | Destroyed 19 combat bots 21360 | -1/Command | Spotted Investigator 21362 | -1/Command | Destroyed Investigator 21419 | -1/Command | Destroyed 18 combat bots 21528 | -1/Command | Spotted Investigator 21529 | -1/Command | Destroyed Investigator 21532 | -1/Command | Spotted Striker 21541 | -1/Command | Destroyed Striker 21638 | -1/Command | Destroyed 24 combat bots 21686 | -1/Command | Destroyed Striker 21689 | -1/Command | Destroyed Executioner 21694 | -1/Command | Spotted Executioner 21701 | -1/Command | Destroyed Executioner 21733 | -1/Command | Found Exp. Targeting Computer 21742 | -1/Command | Destroyed 14 combat bots 21752 | -1/Command | Destroyed Striker 21755 | -1/Command | Destroyed Striker 21757 | -1/Command | Destroyed Executioner 21761 | -1/Command | Spotted Executioner 21762 | -1/Command | Destroyed Executioner 21798 | -1/Command | Spotted B-99 Colossus 21801 | -1/Command | Destroyed 9 combat bots 21814 | -1/Command | Spotted Executioner 21814 | -1/Command | Spotted Striker 21819 | -1/Command | Destroyed Executioner 21823 | -1/Command | Destroyed Striker 21860 | -1/Command | Destroyed B-99 Colossus 21971 | -1/Command | Destroyed 12 combat bots 21981 | -1/Command | Spotted Striker 21986 | -1/Command | Spotted Striker 21994 | -1/Command | Destroyed Striker 22000 | -1/Command | Destroyed Striker 22010 | -1/Command | Destroyed Executioner 22014 | -1/Command | Spotted Striker 22020 | -1/Command | Reached level 39 22020 | -1/Command | Destroyed Striker 22092 | -1/Command | Destroyed 22 combat bots 22152 | -1/Command | Build established: Machinist-Scout 22264 | -1/Command | Spotted Executioner 22267 | -1/Command | Destroyed Executioner 22276 | -1/Command | Spotted Executioner 22276 | -1/Command | Spotted Executioner 22281 | -1/Command | Destroyed Executioner 22286 | -1/Command | Destroyed Executioner 22303 | -1/Command | Destroyed Executioner 22334 | -1/Command | Destroyed 13 combat bots 22935 | -1/Command | Spotted Striker 22936 | -1/Command | Spotted Executioner 22936 | -1/Command | Destroyed Executioner 22946 | -1/Command | Destroyed Striker 22953 | -1/Command | Spotted Executioner 22955 | -1/Command | Destroyed Executioner 22962 | -1/Command | Spotted Striker 22969 | -1/Command | Spotted Executioner 22969 | -1/Command | Spotted Alpha 7 22988 | -1/Command | Spotted B-99 Colossus 22995 | -1/Command | Destroyed Striker 22998 | -1/Command | Destroyed Executioner 23006 | -1/Command | Spotted Executioner 23010 | -1/Command | Destroyed Executioner 23012 | -1/Command | Spotted B-99 Colossus 23017 | -1/Command | Spotted Alpha 7 23051 | -1/Command | Destroyed Alpha 7 23067 | -1/Command | Destroyed Alpha 7 23099 | -1/Command | Destroyed B-99 Colossus 23107 | -1/Command | Discovered new exit (range 8) 23107 | -1/Command | Destroyed B-99 Colossus 23303 | -1/Command | Destroyed 18 combat bots 23498 | -1/Command | Destroyed 51 combat bots 23663 | -1/Command | System corruption reached 10% 23783 | -1/Command | Destroyed 77 combat bots 23880 | -1/Command | Destroyed 24 combat bots 23919 | -1/Command | Spotted B-99 Colossus 23949 | -1/Command | Destroyed B-99 Colossus 24218 | -1/Command | Destroyed 90 combat bots 24312 | -1/Command | Destroyed 22 combat bots 24333 | -1/Command | Reached level 40 24373 | -1/Command | Destroyed 21 combat bots 24528 | -1/Command | Destroyed 41 combat bots 24570 | -1/Command | Spotted M Guard 24570 | -1/Command | Spotted M Guard 24570 | -1/Command | Spotted Combat Programmer 24578 | -1/Command | Spotted Combat Programmer 24626 | -1/Command | Destroyed Combat Programmer 24699 | -1/Command | Destroyed M Guard 24730 | -1/Command | Destroyed M Guard 24769 | -1/Command | Destroyed Combat Programmer 24769 | -1/Command | Destroyed all MAIN.C guards 24878 | -1/Command | Found Prototype Device 24878 | -1/Command | Identified Adv. Kinecellerator 24921 | -1/Command | Found Prototype Device 24921 | -1/Command | Identified EM Disruption Field 25226 | -1/Command | Met MAIN.C 25233 | -1/Command | 0b10 Conduit disabled 25258 | -1/Command | MAIN.C activated Command garrisons 25276 | -1/Command | Destroyed MAIN.C Shell 25312 | -1/Command | Core integrity fell below 50% 25334 | -1/Command | Core integrity fell below 20% 25499 | -1/Command | Destroyed MAIN.C 25513 | -1/Command | Found Prototype Protection 25513 | -1/Command | Identified Exp. Powered Armor 25620 | -1/Command | Discovered new exit (range 14) 25671 | -1/Command | Warped through subspace to slip node 25671 | -1/Command | Discovered new exit (range 4) 25674 | -1/Command | Identified exit to Access_0 25677 | -1/Command | Entered Access_0 25678 | -1/Access_0 | Met Architect 25682 | -1/Access_0 | Architect warped through subspace 25726 | -1/Access_0 | Architect warped through subspace 25771 | -1/Access_0 | Architect warped through subspace 25801 | -1/Access_0 | Build established: Machinist-Sprinter 25811 | -1/Access_0 | Architect warped through subspace 25867 | -1/Access_0 | Architect warped through subspace 25889 | -1/Access_0 | Subspace Access Node disabled 25909 | -1/Access_0 | Architect warped through subspace 25913 | -1/Access_0 | Subspace Access Node disabled 25925 | -1/Access_0 | Found Core Regenerator 25925 | -1/Access_0 | Used Core Regenerator, restored core integrity (+211) 25942 | -1/Access_0 | Destroyed A8 25956 | -1/Access_0 | Architect warped through subspace 25959 | -1/Access_0 | Found Prototype Device 25959 | -1/Access_0 | Identified Desublimator 25966 | -1/Access_0 | A6 warped into view 25994 | -1/Access_0 | Architect warped through subspace 26010 | -1/Access_0 | Destroyed A6 26036 | -1/Access_0 | Architect warped through subspace 26087 | -1/Access_0 | Architect warped through subspace 26129 | -1/Access_0 | Architect warped through subspace 26149 | -1/Access_0 | Architect warped through subspace 26173 | -1/Access_0 | Architect warped through subspace 26202 | -1/Access_0 | Architect warped through subspace 26229 | -1/Access_0 | Architect warped through subspace 26234 | -1/Access_0 | A5 warped into view 26267 | -1/Access_0 | Subspace Access Node disabled 26269 | -1/Access_0 | Architect warped through subspace 26310 | -1/Access_0 | Subspace Access Node disabled 26616 | -1/Access_0 | Destroyed A5 26649 | -1/Access_0 | Build established: Machinist-Gunner 26743 | -1/Access_0 | Found Alien Artifact 26743 | -1/Access_0 | Identified Hpw. Transdimensional Reconstructor 26743 | -1/Access_0 | Warped through subspace to slip node 26743 | -1/Access_0 | Discovered new exit (range 8) 26780 | -1/Access_0 | Crushed by falling debris 26840 | -1/Access_0 | Crushed by falling debris 26840 | -1/Access_0 | Smashed by cave-in Last Messages --------------- 26736_ System corrupted: Enh. Force Lance targeting data glitched. 26739_ Workstation disabled. 26743_ Acquired Alien Artifact. 26743_ Identified Hpw. Transdimensional Reconstructor. 26743_ Warped through subspace, drawn to slip node. 26743_ EXIT=FOUND 26758_ System corrupted: Enh. Force Lance targeting data glitched. 26765_ 2Z N=A8VM,9WW,S<&FO E:UY C:C>Z:RGW 26780_ The unstable cave ceiling collapses. 26780_ Crushed by falling debris. 26783_ System corrupted: FCS attempts to trigger Hyp. Railgun. 26783_ System corrupted: Hyp. Railgun misfires. 26783_ HV Slug penetrates Earth. 26796_ System corrupted: Enh. Force Lance targeting data glitched. 26804_ System corrupted: Component data lost. 26815_ System corrupted: Enh. Force Lance targeting data glitched. 26837_ System corrupted: Substantial component data lost. 26837_ System corrupted: Enh. Force Lance targeting data glitched. 26840_ The unstable cave ceiling collapses. 26840_ Crushed by falling debris. Map ----- +----------------------------------------------------+ | ?????????????????????# ##??????????????????????? | | ?????????????????????## #???????????????????????? | | ??????????????????????##"#???????????????????????? | | ???????????????????????# #???????????????????????? | | ???????????????????????# ##??????????????????????? | | ???????????????????????##"#??????????????????????? | | ????????????????????????# #??????????????????????? | | ????????????????????????# #??????????????????????? | | ????????????????????????# #??????????????????????? | | ????????????????????????# #??????????????????????? | | ????????????????????????# #??????????????????????? | | ????????????????????????# #??????????????????????? | | ????????????????????????# #??????????????????????? | | ????????????????????????# #??????????????????????? | | ????????????????????????# #??????????????????????? | | ????????????????????????# #??????????????????????? | | ????????????????????????# #??????????????????????? | | ????????????????????????# #??????????????????????? | | ????????????????????????# #??????????????????????? | | ????????????????????????# #??????????????????????? | | ????????????????????????# #??????????????????????? | | ????????????????????????# #??????????????????????? | | ????????????????????????# #??????????????????????? | | ????????????????????????# #??????????????????????? | | ????????????????????????# #??????????????????????? | | ????????????????????????#@#??????????????????????? | | ????????????????????????###??????????????????????? | | ?????????????????????????????????????????????????? | | ?????????????????????????????????????????????????? | | ?????????????????????????????????????????????????? | | ?????????????????????????????????????????????????? | | ?????????????????????????????????????????????????? | | ?????????????????????????????????????????????????? | | ?????????????????????????????????????????????????? | | ?????????????????????????????????????????????????? | | ?????????????????????????????????????????????????? | | ?????????????????????????????????????????????????? | | ?????????????????????????????????????????????????? | | ?????????????????????????????????????????????????? | | ?????????????????????????????????????????????????? | | ?????????????????????????????????????????????????? | | ?????????????????????????????????????????????????? | | ?????????????????????????????????????????????????? | | ?????????????????????????????????????????????????? | | ?????????????????????????????????????????????????? | | ?????????????????????????????????????????????????? | | ?????????????????????????????????????????????????? | | ?????????????????????????????????????????????????? | | ?????????????????????????????????????????????????? | | ?????????????????????????????????????????????????? | +----------------------------------------------------+ Best States ------------- Heat Dissipation 195 Energy Generation 79 Energy Capacity 1410 Matter Stores 925 Matter Capacity 925 Sight Range 23 Robot Scan Range 20 Terrain Scan Density 10 Armor Coverage 400 Resistance: EM 15 Weapon Cycling 30 Phase Shifting 20 Evasion (%) 101 Targeting Accuracy 36 Target Analysis 12 Core Analysis 15 Armor Integrity Analysis 90 Offensive Hacking 101 Defensive Hacking 53 Item Schematics ----------------- Adv. Signal Interpreter | -8/Materials | Hacked Exp. Sensor Array | -8/Materials | Scanalyzed Shock Bomb Launcher | -8/Materials | Scanalyzed Cld. VTOL Module | -7/Factory | Hacked Hyp. Gauss Cannon | -7/Factory | Hacked Field Propulsion Drive | -7/Factory | Scanalyzed Imp. Deuterium Engine | -7/Factory | Hacked Exp. Signal Interpreter | -7/Factory | Hacked Arc Thrower | -7/Zion | Free Battle Rifle | -7/Zion | Free Slug Cannon | -7/Zion | Free Bore Cannon | -7/Zion | Free Flamer | -7/Zion | Free Hyp. Coil Gun | -6/Factory | Hacked Adv. Target Analyzer | -6/Factory | Hacked Imp. Weapon Cycler | -6/Factory | Hacked Imp. Hacking Suite | -6/Factory | Hacked Imp. System Shield | -6/Factory | Hacked Adv. Transmission Jammer | -6/Factory | Hacked Adv. Hacking Suite | -6/Factory | Hacked Adv. System Shield | -6/Factory | Hacked Adv. Cooling System | -6/Factory | Hacked Imp. Remote Datajack | -6/Factory | Hacked Combat Drone Bay | -6/Data Miner | Free Lgt. Regenerative Plating | -6/Data Miner | Free Cmb. Gravmag System | -6/Data Miner | Free Exp. Terrain Scan Processor | -6/Data Miner | Free Exp. ECM Suite | -6/Data Miner | Free Plasma Sword | -6/Data Miner | Free Kinetic Spear | -6/Data Miner | Free Exp. Targeting Computer | -5/Proximity Caves | Hacked Cld. Nuclear Pulse Thruster | -5/Factory | Hacked Enh. Force Lance | -5/Factory | Hacked Com. HERF Cannon | -5/Factory | Hacked Exp. Weapon Shielding | -5/Factory | Hacked Q-thruster | -5/Factory | Hacked Adv. Armor Integrity Analyzer | -5/Factory | Hacked Hyp. Railgun | -5/Factory | Hacked Exp. Hacking Suite | -5/Factory | Hacked Exp. System Shield | -5/Factory | Hacked Cld. Field Propulsion Drive | -5/Factory | Hacked Mni. Fusion Reactor | -5/Factory | Hacked Adv. Weapon Cycler | -5/Factory | Hacked Adv. Matter Compressor | -5/Hub_04(d) | Hacked Com. Tesla Bomb Launcher | -5/Hub_04(d) | Hacked Exp. Target Analyzer | -4/Factory | Hacked Exp. Cooling System | -4/Factory | Hacked Coolant Network | -4/Factory | Hacked Enh. Nova Cannon | -4/Factory | Hacked Impulse Thruster | -4/Factory | Hacked Cld. Q-thruster | -3/Research | Hacked Exp. Weapon Cycler | -3/Research | Hacked Exp. Armor Integrity Analyzer | -3/Research | Hacked Exp. Matter Compressor | -3/Research | Hacked Exp. Core Analyzer | -3/Research | Hacked Exp. Phase Shifter | -3/Research | Hacked Adv. Reaction Control System | -3/Research | Hacked Med. Regenerative Plating | -3/Testing | Hacked Hvy. Regenerative Plating | -3/Testing | Hacked Exp. Q-thruster | -3/Testing | Hacked Exp. Force Field | -3/Testing | Hacked Zero-point Reactor | -2/Research | Hacked Exp. Energy Well | -2/Research | Hacked Robot Schematics ------------------ S-27 Virus | -6/Data Miner | Free G-50 Soldier | -6/Data Miner | Free G-67 Veteran | -6/Data Miner | Free X-72 Disruptor | -6/Data Miner | Free P-70 Sage | -6/Data Miner | Free I-36 Angel | -6/Data Miner | Free I-47 Archangel | -6/Data Miner | Free Fabricated ------------ Cld. VTOL Module | x1 | -7/Factory Field Propulsion Drive | x2 | -7/Factory Field Propulsion Drive | x2 | -7/Factory Imp. Hacking Suite | x1 | -6/Factory Imp. Hacking Suite | x1 | -6/Factory Imp. Hacking Suite | x1 | -6/Factory Adv. Target Analyzer | x1 | -6/Factory Imp. System Shield | x1 | -6/Factory Adv. Hacking Suite | x1 | -6/Factory Adv. Hacking Suite | x1 | -6/Factory Adv. Hacking Suite | x1 | -6/Factory Adv. Hacking Suite | x1 | -5/Factory Adv. Hacking Suite | x1 | -5/Factory Combat Drone Bay | x1 | -5/Factory Adv. Armor Integrity Analyzer | x1 | -5/Factory Hyp. Railgun | x2 | -5/Factory Hyp. Railgun | x2 | -5/Factory Cld. Field Propulsion Drive | x1 | -5/Factory Cld. Field Propulsion Drive | x1 | -5/Factory Cld. Field Propulsion Drive | x1 | -4/Factory Cld. Field Propulsion Drive | x1 | -4/Factory Exp. Hacking Suite | x1 | -4/Factory Exp. Hacking Suite | x1 | -4/Factory Exp. Hacking Suite | x1 | -4/Factory Mni. Fusion Reactor | x1 | -4/Factory Mni. Fusion Reactor | x1 | -4/Factory Adv. Matter Compressor | x1 | -4/Armory Exp. Target Analyzer | x1 | -4/Armory Exp. Targeting Computer | x1 | -4/Armory Exp. Targeting Computer | x1 | -4/Armory Exp. Cooling System | x1 | -4/Armory Exp. System Shield | x1 | -4/Armory Cld. Q-thruster | x1 | -3/Research Cld. Q-thruster | x1 | -3/Research Exp. Armor Integrity Analyzer | x1 | -3/Testing Exp. Phase Shifter | x1 | -3/Testing Exp. Weapon Cycler | x1 | -3/Testing Cld. Q-thruster | x1 | -2/Research Cld. Q-thruster | x1 | -2/Research Exp. Core Analyzer | x1 | -2/Research Enh. Force Lance | x1 | -1/Access Exp. Energy Well | x1 | -1/Access Alien Tech Used ----------------- Integrated Dissipator Integrated Singularity Reactor Integrated Heat Negator Core Regenerator LRC Energy Well LRC Matter Compressor Transdimensional Reconstructor High-powered Transdimensional Reconstructor Achievements -------------- None Challenges ------------ None RPGLIKE | -11 -10 -10 -10 -9 -8 -7 -7 -7 -7 -7 -6 -6 -6 -6 -6 -6 -6 -5 -5 -5 -5 -5 -5 -5 -5 -4 -4 -4 -4 -4 -3 -3 -2 -2 -2 -1 -1 -1 --------- Run | Scr Mat Min Exi Min Mat Fac Was Fac Low Zio Pro Fac Was Fac Low Low Dat Pro Fac Was Fac Ext Cet Arc Hub Fac Was Fac Arm Lab Res Tes Res Qua Sec Acc Com Ac0 Levels Raised 39 | . 1 1 . 1 5 4 . 2 . 1 1 1 . . . 1 . . 3 . 1 1 . . 1 . . 1 1 . 2 . 3 1 1 3 3 . XP Earned 62242 | 3000 2603 850 200 2000 7304 5559 290 3374 244 294 1546 1686 97 137 412 528 253 1000 3674 67 1334 1298 699 229 505 830 67 908 1636 754 1966 872 3646 1430 1478 5359 3887 226 XP Spent 61495 | 2770 1600 1550 . 1460 7000 5900 . 1900 . 2600 . 2900 . . . . . . 6700 . 1500 . . . . . . 3800 . . 4100 1100 1600 1750 . 4400 8865 . Upgrades 61 | 8 2 2 . 3 19 7 . 2 . 1 . 1 . . . . . . 2 . 1 . . . . . . 1 . . 1 1 1 1 . 1 7 . Power Slot 1 | . . . . . . 1 . . . . . . . . . . . . . . . . . . . . . . . . . . . . . . . . Propulsion Slot 3 | 1 . 1 . . . 1 . . . . . . . . . . . . . . . . . . . . . . . . . . . . . . . . Utility Slot 15 | 2 1 . . 1 2 1 . . . 1 . 1 . . . . . . 2 . . . . . . . . 1 . . 1 . . . . 1 1 . Weapon Slot 3 | 1 . . . . . . . 2 . . . . . . . . . . . . . . . . . . . . . . . . . . . . . . Core Integrity 10 | . . . . 2 7 . . . . . . . . . . . . . . . . . . . . . . . . . . . . . . . 1 . Heat Dissipation 2 | 2 . . . . . . . . . . . . . . . . . . . . . . . . . . . . . . . . . . . . . . Energy Generation 2 | . . . . . 1 . . . . . . . . . . . . . . . . . . . . . . . . . . . . . . . 1 . Mass Support 4 | 1 . . . . 1 . . . . . . . . . . . . . . . . . . . . . . . . . . 1 1 . . . . . Inventory Capacity 8 | 1 1 1 . . 1 1 . . . . . . . . . . . . . . 1 . . . . . . . . . . . . 1 . . 1 . Sensor Range 10 | . . . . . 7 3 . . . . . . . . . . . . . . . . . . . . . . . . . . . . . . . . KI Damage % 3 | . . . . . . . . . . . . . . . . . . . . . . . . . . . . . . . . . . . . . 3 . Protomatter Created 20641 | . 160 14 . 51 385 417 44 7 . . . 107 . . 46 153 . . 238 . 84 130 62 87 . 37 83 711 884 . 489 221 1340 729 841 3872 8791 658 Integrity Restored 19601 | . 336 42 . 153 990 1248 165 467 . . 30 279 . . 138 483 . . 950 . 230 1042 318 82 274 111 249 1279 503 . 104 361 445 1599 698 1833 3231 1961 Core 16190 | . 336 42 . 153 990 1248 165 317 . . 30 279 . . 138 443 . . 871 . 101 825 294 38 229 111 249 963 278 . 78 222 346 1432 464 1508 2577 1463 Parts 3411 | . . . . . . . . 150 . . . . . . . 40 . . 79 . 129 217 24 44 45 . . 316 225 . 26 139 99 167 234 325 654 498 Protomatter Decayed 17849 | . 48 . . . 13 . . 60 . . 119 26 . . . . . . 275 . 57 551 109 87 199 . 257 277 871 . 816 70 1184 194 617 3848 8108 63 Game ------ Seed DiametricFieldTreads Manual? 0 Play Time 06:53:05 Cumulative 1061.0 hours Start 2020.07.02 @ 19:38:45 End 2020.07.04 @ 15:16:36 Sessions 5 Manual Loads 0 Difficulty Rogue Special Mode Winter2019/RPGLIKE Game No. 342 Rogue 342 Adventurer 0 Explorer 0 Win Type - Total 77 Types 14/8/35/5/1/2/12 Lore% 97 Gallery% 97 Achievement% 85 Wizard Run 0 Options --------- ASCII 0 Keyboard 0 Movement Numpad Keybinds 0 Fullscreen 1 Font 18/SmallcapsGlow Map View 76x50 Tactical HUD 1 Map Filters NONE Filters NONE Steam 1 RUN: e39f479d-849b-4511-8333-93a2cf86d564